{"text_format":"1","workbook":"xlsx","n_sheets":7,"sheets":["Doku Rind","Doku Pferd,Schaf,Gehegewild","Doku Schwein","Doku Geflügel","Daten Nährstoffanfall","Weideverluste","Daten Weideverfahren"],"not_rendered":{"charts":0,"images":1,"macros":1,"external_links":0,"defined_names":0,"comments":0,"pivot_tables":0},"unopened":[],"bounds":{"document_bytes":16777216,"sheet_cells":100000,"rows_first":2000,"rows_last":500,"rows_between":2000,"halvings":0,"cell_chars":16384,"cell_head_chars":4096},"cells_cut":0,"cells_raw":0,"read":"whole","date_system":"1900"}

{"sheet":"Doku Rind","index":0,"n_rows":48,"n_cols":22,"rows_kept":48,"cut":false,"hidden":false,"merged":[[31,0,31,4],[31,5,31,16],[28,10,30,16],[0,10,0,12],[0,14,0,16],[27,10,27,11],[1,12,1,16],[0,6,1,6],[0,0,1,5],[2,2,27,2],[27,0,27,1],[28,0,30,4],[28,5,30,6]]}
["Weidetagebuch",null,null,null,null,null,"Weidetagebuch",null,null,null,"Ausgefüllt am:"]
[null,null,null,null,null,null,null,null,null,null,null,null,"Anfall auf der Weide"]
[null,null,null,"Weideverfahren","Größe (ha)","Anzahl Tiere","Tierart","N (kg/Jahr)","P2O5 (kg/Jahr)","K2O (kg/Jahr)","Tage","Stunden","N-Anfall (kg)","N-Anfall (kg/ha)","P2O5-Anfall (kg)","P2O5-Anfall (kg/ha)","K2O-Anfall (kg)","K2O-Anfall (kg/ha)"]
["Weidejahr:",2020,null,null,null,null,null,{"$f":"VLOOKUP(G4,'Daten Nährstoffanfall'!$C$3:$D$47,2,FALSE)","v":{"$error":"#N/A"}},{"$f":"VLOOKUP(G4,'Daten Nährstoffanfall'!$C$3:$E$47,3,FALSE)","v":{"$error":"#N/A"}},{"$f":"VLOOKUP(G4,'Daten Nährstoffanfall'!$C$3:$F$47,4,FALSE)","v":{"$error":"#N/A"}},null,null,{"$f":"IFERROR(IF(((H4*(K4/365))*(L4/24)*F4)*0.7,((H4*(K4/365))*(L4/24)*F4)*0.7,\"\"),\"\")","v":""},{"$f":"M4/E4","v":{"$error":"#VALUE!"}},{"$f":"IFERROR(IF(((I4*(K4/365)*L4/24)*F4)*0.7,((I4*(K4/365)*L4/24)*F4),\"\"),\"\")","v":""},{"$f":"O4/E4","v":{"$error":"#VALUE!"}},{"$f":"IFERROR(IF(((J4*(K4/365)*(L4/24)*F4)*0.7),((J4*(K4/365)*(L4/24)*F4)),\"\"),\"\")","v":""},{"$f":"Q4/E4","v":{"$error":"#VALUE!"}},"Jungrinderaufzucht, Grünland; konventionell;  0 bis 6 Monate",28,9.16,34.799999999999997]
["Unternehmernummer:",null,null,null,null,null,null,{"$f":"VLOOKUP(G5,'Daten Nährstoffanfall'!$C$3:$D$47,2,FALSE)","v":{"$error":"#N/A"}},{"$f":"VLOOKUP(G5,'Daten Nährstoffanfall'!$C$3:$E$47,3,FALSE)","v":{"$error":"#N/A"}},{"$f":"VLOOKUP(G5,'Daten Nährstoffanfall'!$C$3:$F$47,4,FALSE)","v":{"$error":"#N/A"}},null,null,{"$f":"IFERROR(IF(((H5*(K5/365))*(L5/24)*F5)*0.7,((H5*(K5/365))*(L5/24)*F5)*0.7,\"\"),\"\")","v":""},{"$f":"M5/E5","v":{"$error":"#VALUE!"}},{"$f":"IFERROR(IF(((I5*(K5/365)*L5/24)*F5)*0.7,((I5*(K5/365)*L5/24)*F5),\"\"),\"\")","v":""},{"$f":"O5/E5","v":{"$error":"#VALUE!"}},{"$f":"IFERROR(IF(((J5*(K5/365)*(L5/24)*F5)*0.7),((J5*(K5/365)*(L5/24)*F5)),\"\"),\"\")","v":""},{"$f":"Q5/E5","v":{"$error":"#VALUE!"}},"Jungrinderaufzucht, Grünland; konventionell; 7 bis 12 Monate",47,13.74,57.6]
["Name:",null,null,null,null,null,null,{"$f":"VLOOKUP(G6,'Daten Nährstoffanfall'!$C$3:$D$47,2,FALSE)","v":{"$error":"#N/A"}},{"$f":"VLOOKUP(G6,'Daten Nährstoffanfall'!$C$3:$E$47,3,FALSE)","v":{"$error":"#N/A"}},{"$f":"VLOOKUP(G6,'Daten Nährstoffanfall'!$C$3:$F$47,4,FALSE)","v":{"$error":"#N/A"}},null,null,"",{"$f":"M6/E6","v":{"$error":"#VALUE!"}},"",{"$error":"#VALUE!"},"",{"$error":"#VALUE!"},"Jungrinderaufzucht, Grünland; konventionell; 13 bis 24 Monate",72,20.61,93.6]
["Vorname:",null,null,null,null,null,null,{"$f":"VLOOKUP(G7,'Daten Nährstoffanfall'!$C$3:$D$47,2,FALSE)","v":{"$error":"#N/A"}},{"$f":"VLOOKUP(G7,'Daten Nährstoffanfall'!$C$3:$E$47,3,FALSE)","v":{"$error":"#N/A"}},{"$f":"VLOOKUP(G7,'Daten Nährstoffanfall'!$C$3:$F$47,4,FALSE)","v":{"$error":"#N/A"}},null,null,"",{"$f":"M7/E7","v":{"$error":"#VALUE!"}},"",{"$error":"#VALUE!"},"",{"$error":"#VALUE!"},"Jungrinderaufzucht, Grünland; konventionell; über 24 Monate",84,22.9,99.6]
["Straße: ",null,null,null,null,null,null,{"$f":"VLOOKUP(G8,'Daten Nährstoffanfall'!$C$3:$D$47,2,FALSE)","v":{"$error":"#N/A"}},{"$f":"VLOOKUP(G8,'Daten Nährstoffanfall'!$C$3:$E$47,3,FALSE)","v":{"$error":"#N/A"}},{"$f":"VLOOKUP(G8,'Daten Nährstoffanfall'!$C$3:$F$47,4,FALSE)","v":{"$error":"#N/A"}},null,null,"",{"$error":"#VALUE!"},"",{"$f":"O8/E8","v":{"$error":"#VALUE!"}},"",{"$error":"#VALUE!"},"Jungrinderaufzucht, Grünland; extensiv;  0 bis 6 Monate; Futterbasis Naturschutzgrünland",28,9.16,30]
["PLZ:",null,null,null,null,null,null,{"$f":"VLOOKUP(G9,'Daten Nährstoffanfall'!$C$3:$D$47,2,FALSE)","v":{"$error":"#N/A"}},{"$f":"VLOOKUP(G9,'Daten Nährstoffanfall'!$C$3:$E$47,3,FALSE)","v":{"$error":"#N/A"}},{"$f":"VLOOKUP(G9,'Daten Nährstoffanfall'!$C$3:$F$47,4,FALSE)","v":{"$error":"#N/A"}},null,null,"",{"$error":"#VALUE!"},"",{"$error":"#VALUE!"},"",{"$error":"#VALUE!"},"Jungrinderaufzucht, Grünland; extensiv; 7 bis 12 Monate; Futterbasis Naturschutzgrünland",44,13.74,48]
["Ort:",null,null,null,null,null,null,{"$f":"VLOOKUP(G10,'Daten Nährstoffanfall'!$C$3:$D$47,2,FALSE)","v":{"$error":"#N/A"}},{"$f":"VLOOKUP(G10,'Daten Nährstoffanfall'!$C$3:$E$47,3,FALSE)","v":{"$error":"#N/A"}},{"$f":"VLOOKUP(G10,'Daten Nährstoffanfall'!$C$3:$F$47,4,FALSE)","v":{"$error":"#N/A"}},null,null,"",{"$error":"#VALUE!"},"",{"$error":"#VALUE!"},"",{"$error":"#VALUE!"},"Jungrinderaufzucht, Grünland; extensiv; 13 bis 24 Monate; Futterbasis Naturschutzgrünland",67,20.61,73.2]
["Betriebsfläche in ha:",null,null,null,null,null,null,{"$f":"VLOOKUP(G11,'Daten Nährstoffanfall'!$C$3:$D$47,2,FALSE)","v":{"$error":"#N/A"}},{"$f":"VLOOKUP(G11,'Daten Nährstoffanfall'!$C$3:$E$47,3,FALSE)","v":{"$error":"#N/A"}},{"$f":"VLOOKUP(G11,'Daten Nährstoffanfall'!$C$3:$F$47,4,FALSE)","v":{"$error":"#N/A"}},null,null,"",{"$error":"#VALUE!"},"",{"$error":"#VALUE!"},"",{"$error":"#VALUE!"},"Jungrinderaufzucht, Grünland; extensiv; über 24 Monate; Futterbasis Naturschutzgrünland",77,22.9,84]
["Dauergrünland in ha:",null,null,null,null,null,null,{"$f":"VLOOKUP(G12,'Daten Nährstoffanfall'!$C$3:$D$47,2,FALSE)","v":{"$error":"#N/A"}},{"$f":"VLOOKUP(G12,'Daten Nährstoffanfall'!$C$3:$E$47,3,FALSE)","v":{"$error":"#N/A"}},{"$f":"VLOOKUP(G12,'Daten Nährstoffanfall'!$C$3:$F$47,4,FALSE)","v":{"$error":"#N/A"}},null,null,"",{"$error":"#VALUE!"},"",{"$error":"#VALUE!"},"",{"$error":"#VALUE!"},"Jungrinderaufzucht,  Ackerfutter; mit Weide; 0 bis 6 Monate",24,8.02,30]
[null,null,null,null,null,null,null,{"$f":"VLOOKUP(G13,'Daten Nährstoffanfall'!$C$3:$D$47,2,FALSE)","v":{"$error":"#N/A"}},{"$f":"VLOOKUP(G13,'Daten Nährstoffanfall'!$C$3:$E$47,3,FALSE)","v":{"$error":"#N/A"}},{"$f":"VLOOKUP(G13,'Daten Nährstoffanfall'!$C$3:$F$47,4,FALSE)","v":{"$error":"#N/A"}},null,null,"",{"$error":"#VALUE!"},"",{"$error":"#VALUE!"},"",{"$error":"#VALUE!"},"Jungrinderaufzucht,  Ackerfutter; mit Weide; 7 bis 12 Monate",39,11.45,48]
[null,null,null,null,null,null,null,{"$f":"VLOOKUP(G14,'Daten Nährstoffanfall'!$C$3:$D$47,2,FALSE)","v":{"$error":"#N/A"}},{"$f":"VLOOKUP(G14,'Daten Nährstoffanfall'!$C$3:$E$47,3,FALSE)","v":{"$error":"#N/A"}},{"$f":"VLOOKUP(G14,'Daten Nährstoffanfall'!$C$3:$F$47,4,FALSE)","v":{"$error":"#N/A"}},null,null,"",{"$error":"#VALUE!"},"",{"$error":"#VALUE!"},"",{"$error":"#VALUE!"},"Jungrinderaufzucht,  Ackerfutter; mit Weide; 13 bis 24 Monate",61,20.61,73.2]
[null,null,null,null,null,null,null,{"$f":"VLOOKUP(G15,'Daten Nährstoffanfall'!$C$3:$D$47,2,FALSE)","v":{"$error":"#N/A"}},{"$f":"VLOOKUP(G15,'Daten Nährstoffanfall'!$C$3:$E$47,3,FALSE)","v":{"$error":"#N/A"}},{"$f":"VLOOKUP(G15,'Daten Nährstoffanfall'!$C$3:$F$47,4,FALSE)","v":{"$error":"#N/A"}},null,null,"",{"$error":"#VALUE!"},"",{"$error":"#VALUE!"},"",{"$error":"#VALUE!"},"Jungrinderaufzucht,  Ackerfutter; mit Weide; über 24 Monate",70,22.9,84]
[null,null,null,null,null,null,null,{"$f":"VLOOKUP(G16,'Daten Nährstoffanfall'!$C$3:$D$47,2,FALSE)","v":{"$error":"#N/A"}},{"$f":"VLOOKUP(G16,'Daten Nährstoffanfall'!$C$3:$E$47,3,FALSE)","v":{"$error":"#N/A"}},{"$f":"VLOOKUP(G16,'Daten Nährstoffanfall'!$C$3:$F$47,4,FALSE)","v":{"$error":"#N/A"}},null,null,"",{"$error":"#VALUE!"},"",{"$error":"#VALUE!"},"",{"$error":"#VALUE!"},"Bullenmast,  bis 675 kg (0 bis 6 Monate); ab Kalb 45 kg",18,6.87,14.4]
[null,null,null,null,null,null,null,{"$f":"VLOOKUP(G17,'Daten Nährstoffanfall'!$C$3:$D$47,2,FALSE)","v":{"$error":"#N/A"}},{"$f":"VLOOKUP(G17,'Daten Nährstoffanfall'!$C$3:$E$47,3,FALSE)","v":{"$error":"#N/A"}},{"$f":"VLOOKUP(G17,'Daten Nährstoffanfall'!$C$3:$F$47,4,FALSE)","v":{"$error":"#N/A"}},null,null,"",{"$error":"#VALUE!"},"",{"$error":"#VALUE!"},"",{"$error":"#VALUE!"},"Bullenmast,  bis 675 kg (7 bis 12 Monate); ab Kalb 45 kg",36,16.03,30]
[null,null,null,null,null,null,null,{"$f":"VLOOKUP(G18,'Daten Nährstoffanfall'!$C$3:$D$47,2,FALSE)","v":{"$error":"#N/A"}},{"$f":"VLOOKUP(G18,'Daten Nährstoffanfall'!$C$3:$E$47,3,FALSE)","v":{"$error":"#N/A"}},{"$f":"VLOOKUP(G18,'Daten Nährstoffanfall'!$C$3:$F$47,4,FALSE)","v":{"$error":"#N/A"}},null,null,"",{"$error":"#VALUE!"},"",{"$error":"#VALUE!"},"",{"$error":"#VALUE!"},"Bullenmast,  bis 675 kg (13 bis 19 Monate); ab Kalb 45 kg",53,20.61,44.4]
[null,null,null,null,null,null,null,{"$f":"VLOOKUP(G19,'Daten Nährstoffanfall'!$C$3:$D$47,2,FALSE)","v":{"$error":"#N/A"}},{"$f":"VLOOKUP(G19,'Daten Nährstoffanfall'!$C$3:$E$47,3,FALSE)","v":{"$error":"#N/A"}},{"$f":"VLOOKUP(G19,'Daten Nährstoffanfall'!$C$3:$F$47,4,FALSE)","v":{"$error":"#N/A"}},null,null,"",{"$error":"#VALUE!"},"",{"$error":"#VALUE!"},"",{"$error":"#VALUE!"},"Bullenmast, bis 750 kg (0 bis 6 Monate); ab Kalb 45 kg",19,6.87,14.4]
[null,null,null,null,null,null,null,{"$f":"VLOOKUP(G20,'Daten Nährstoffanfall'!$C$3:$D$47,2,FALSE)","v":{"$error":"#N/A"}},{"$f":"VLOOKUP(G20,'Daten Nährstoffanfall'!$C$3:$E$47,3,FALSE)","v":{"$error":"#N/A"}},{"$f":"VLOOKUP(G20,'Daten Nährstoffanfall'!$C$3:$F$47,4,FALSE)","v":{"$error":"#N/A"}},null,null,"",{"$error":"#VALUE!"},"",{"$error":"#VALUE!"},"",{"$error":"#VALUE!"},"Bullenmast, bis 750 kg (7 bis 12 Monate) ",39,13.74,32.4]
[null,null,null,null,null,null,null,{"$f":"VLOOKUP(G21,'Daten Nährstoffanfall'!$C$3:$D$47,2,FALSE)","v":{"$error":"#N/A"}},{"$f":"VLOOKUP(G21,'Daten Nährstoffanfall'!$C$3:$E$47,3,FALSE)","v":{"$error":"#N/A"}},{"$f":"VLOOKUP(G21,'Daten Nährstoffanfall'!$C$3:$F$47,4,FALSE)","v":{"$error":"#N/A"}},null,null,"",{"$error":"#VALUE!"},"",{"$error":"#VALUE!"},"",{"$error":"#VALUE!"},"Bullenmast, bis 750 kg (13 bis 19 Monate)",56,20.61,45.6]
[null,null,null,null,null,null,null,{"$f":"VLOOKUP(G22,'Daten Nährstoffanfall'!$C$3:$D$47,2,FALSE)","v":{"$error":"#N/A"}},{"$f":"VLOOKUP(G22,'Daten Nährstoffanfall'!$C$3:$E$47,3,FALSE)","v":{"$error":"#N/A"}},{"$f":"VLOOKUP(G22,'Daten Nährstoffanfall'!$C$3:$F$47,4,FALSE)","v":{"$error":"#N/A"}},null,null,"",{"$error":"#VALUE!"},"",{"$error":"#VALUE!"},"",{"$error":"#VALUE!"},"Kälberaufzucht (Alter bis 16 Wochen; 90 kg Zuwachs je Kalb; \n3 Durchgänge pro Jahr)",16.600000000000001,6.4,15.3]
[null,null,null,null,null,null,null,{"$f":"VLOOKUP(G23,'Daten Nährstoffanfall'!$C$3:$D$47,2,FALSE)","v":{"$error":"#N/A"}},{"$f":"VLOOKUP(G23,'Daten Nährstoffanfall'!$C$3:$E$47,3,FALSE)","v":{"$error":"#N/A"}},{"$f":"VLOOKUP(G23,'Daten Nährstoffanfall'!$C$3:$F$47,4,FALSE)","v":{"$error":"#N/A"}},null,null,"",{"$error":"#VALUE!"},"",{"$error":"#VALUE!"},"",{"$error":"#VALUE!"},"Jungrinderaufzucht, Grünland; konventionell  (Alter 0 bis 27 Monate;        605 kg Zuwachs)",57,16.399999999999999,70.66]
[null,null,null,null,null,null,null,{"$f":"VLOOKUP(G24,'Daten Nährstoffanfall'!$C$3:$D$47,2,FALSE)","v":{"$error":"#N/A"}},{"$f":"VLOOKUP(G24,'Daten Nährstoffanfall'!$C$3:$E$47,3,FALSE)","v":{"$error":"#N/A"}},{"$f":"VLOOKUP(G24,'Daten Nährstoffanfall'!$C$3:$F$47,4,FALSE)","v":{"$error":"#N/A"}},null,null,"",{"$error":"#VALUE!"},"",{"$error":"#VALUE!"},"",{"$error":"#VALUE!"},"Jungrinderaufzucht, Grünland; extensiv (Alter 0 bis 27 Monate; 605 kg Zuwachs; Futterbasis Naturschutzgrünland)",54,16,60]
[null,null,null,null,null,null,null,{"$f":"VLOOKUP(G25,'Daten Nährstoffanfall'!$C$3:$D$47,2,FALSE)","v":{"$error":"#N/A"}},{"$f":"VLOOKUP(G25,'Daten Nährstoffanfall'!$C$3:$E$47,3,FALSE)","v":{"$error":"#N/A"}},{"$f":"VLOOKUP(G25,'Daten Nährstoffanfall'!$C$3:$F$47,4,FALSE)","v":{"$error":"#N/A"}},null,null,"",{"$error":"#VALUE!"},"",{"$error":"#VALUE!"},"",{"$error":"#VALUE!"},"Jungrinderaufzucht,  Ackerfutter; mit Weide  (Alter 0 bis 27 Monate;         605 kg Zuwachs)",48,15.5,59.11]
[null,null,null,null,null,null,null,{"$f":"VLOOKUP(G26,'Daten Nährstoffanfall'!$C$3:$D$47,2,FALSE)","v":{"$error":"#N/A"}},{"$f":"VLOOKUP(G26,'Daten Nährstoffanfall'!$C$3:$E$47,3,FALSE)","v":{"$error":"#N/A"}},{"$f":"VLOOKUP(G26,'Daten Nährstoffanfall'!$C$3:$F$47,4,FALSE)","v":{"$error":"#N/A"}},null,null,"",{"$error":"#VALUE!"},"",{"$error":"#VALUE!"},"",{"$error":"#VALUE!"},"Milchkuh, Grünland mit Weide; 6000 kg ECM",114,36,134]
[null,null,null,null,null,null,null,{"$f":"VLOOKUP(G27,'Daten Nährstoffanfall'!$C$3:$D$47,2,FALSE)","v":{"$error":"#N/A"}},{"$f":"VLOOKUP(G27,'Daten Nährstoffanfall'!$C$3:$E$47,3,FALSE)","v":{"$error":"#N/A"}},{"$f":"VLOOKUP(G27,'Daten Nährstoffanfall'!$C$3:$F$47,4,FALSE)","v":{"$error":"#N/A"}},null,null,"",{"$error":"#VALUE!"},"",{"$error":"#VALUE!"},"",{"$error":"#VALUE!"},"Milchkuh, Grünland mit Weide; 8000 kg ECM",129,43,142]
["Am Ende der Weideperiode auszufüllen!",null,null,null,null,null,null,null,null,null,"Summe:",null,{"$f":"SUM(M4:M27)","v":0},{"$error":"#DIV/0!"},{"$f":"SUM(O4:O27)","v":0},{"$error":"#DIV/0!"},{"$f":"SUM(Q4:Q27)","v":0},{"$error":"#DIV/0!"},"Milchkuh, Grünland mit Weide; 10000 kg ECM",143,47,150]
["Marvin Serve - LK NRW",null,null,null,null,null,null,null,null,null,"Marvin Serve - LK NRW",null,null,null,null,null,null,null,"Milchkuh, Ackerfutter mit Weide; 6000 kg ECM",103,37,109]
[null,null,null,null,null,null,null,null,null,null,null,null,null,null,null,null,null,null,"Milchkuh, Ackerfutter mit Weide; 8000 kg ECM",117,42,120]
[null,null,null,null,null,null,null,null,null,null,null,null,null,null,null,null,null,null,"Milchkuh, Ackerfutter mit Weide; 10000 kg ECM",134,47,131]
["Seite 1 - Diese Angaben sind freiwillig und dienen der Übersichtlichkeit bei einer eventuellen Prüfung",null,null,null,null,"Seite 2 - Pflichtangaben zur Dokumentation der Weidehaltung und für die Anlage 5 der Düngeverordnung",null,null,null,null,null,null,null,null,null,null,null,null,"Milchkuh, Ackerfutter mit Weide; 12000 kg ECM",153,52,140]
[null,null,null,null,null,null,null,null,null,null,null,null,null,null,null,null,null,null,"Milchkuh, leichte Rasse 450 kg LM, Ackerfutter; 5000 kg ECM ",76,27,84]
[null,null,null,null,null,null,null,null,null,null,null,null,null,null,null,null,null,null,"Milchkuh, leichte Rasse 450 kg LM, Ackerfutter; 7000 kg ECM",91,33,96]
[null,null,null,null,null,null,null,null,null,null,null,null,null,null,null,null,null,null,"Milchkuh, leichte Rasse 450 kg LM, Ackerfutter; 9000 kg ECM",111,42,108]
[null,null,null,null,null,null,null,null,null,null,null,null,null,null,null,null,null,null,"Bullenmast,  bis 675 kg (19 Monate); ab Kalb 45 kg",36.6,14.2,30.32]
[null,null,null,null,null,null,null,null,null,null,null,null,null,null,null,null,null,null,"Bullenmast, bis 750 kg (19 Monate); ab Kalb 45 kg",39.1,14.3,31.58]
[null,null,null,null,null,null,null,null,null,null,null,null,null,null,null,null,null,null,"Bullenmast, bis 750 kg (17,6 Monate); ab 80 kg",40.700000000000003,14.7,33.4]
[null,null,null,null,null,null,null,null,null,null,null,null,null,null,null,null,null,null,"Bullenmast, bis 750 kg (13,2 Monate); ab 210 kg",41.3,14.8,40]
[null,null,null,null,null,null,null,null,null,null,null,null,null,null,null,null,null,null,"Fresserproduktion,  80 bis 210 kg LM; 2,7 Umtriebe; Standard",15.7,5.4,15]
[null,null,null,null,null,null,null,null,null,null,null,null,null,null,null,null,null,null,"Fresserproduktion,  80 bis 210 kg LM; 2,7 Umtriebe pro Jahr; N-/P-reduziert",14.6,4.5,15]
[null,null,null,null,null,null,null,null,null,null,null,null,null,null,null,null,null,null,"Mutterkuh, 500 kg LM; 0,9 Kalb pro Kuh und Jahr mit 200 kg Absetzgewicht, 6 Monate Säugezeit",88,26,104]
[null,null,null,null,null,null,null,null,null,null,null,null,null,null,null,null,null,null,"Mutterkuh, 700 kg LM; 0,9 Kalb pro Kuh und Jahr mit 230 kg Absetzgewicht,  6 Monate Säugezeit",105,31,129]
[null,null,null,null,null,null,null,null,null,null,null,null,null,null,null,null,null,null,"Mutterkuh, 700 kg LM; 0,9 Kalb pro Kuh und Jahr mit 340 kg Absetzgewicht, 9 Monate Säugezeit",114,33,142]
[null,null,null,null,null,null,null,null,null,null,null,null,null,null,null,null,null,null,"Rosa-Kalbfleisch-Erzeugung; von 50 bis 350 kg LM;  1,3 Umtriebe ",31,12.7,23]
[null,null,null,null,null,null,null,null,null,null,null,null,null,null,null,null,null,null,"Kälbermast, MAT; von 50 bis 250 kg LM;  2,1 Umtriebe ",13,6.5,13]
[null,null,null,null,null,null,null,null,null,null,null,null,null,null,null,null,null,null,"Kälbermast; MAT+Kraftfutter; 50 bis 260 kg JM;  1,9 Umtriebe ",15.9,7.3,14]
[null,null,null,null,null,null,null,null,null,null,null,null,null,null,null,null,null,null,"Zuchtbulle",61,20.6,84.3]

{"sheet":"Doku Pferd,Schaf,Gehegewild","index":1,"n_rows":33,"n_cols":21,"rows_kept":33,"cut":false,"hidden":false,"merged":[[32,0,32,4],[32,5,32,20],[0,14,0,16],[28,10,28,11],[29,10,31,16],[0,10,0,12],[1,12,1,16],[0,6,1,6],[0,0,1,5],[2,2,28,2],[28,0,28,1],[29,0,31,4],[29,5,31,6]]}
["Weidetagebuch",null,null,null,null,null,"Weidetagebuch",null,null,null,"Ausgefüllt am:"]
[null,null,null,null,null,null,null,null,null,null,null,null,"Anfall auf der Weide"]
[null,null,null,"Weideverfahren","Größe (ha)","Anzahl Tiere","Tierart","N (kg/Jahr)","P2O5 (kg/Jahr)","K2O (kg/Jahr)","Tage","Stunden","N-Anfall (kg)","N-Anfall (kg/ha)","P2O5-Anfall (kg)","P2O5-Anfall (kg/ha)","K2O-Anfall (kg)","Schafe, Ziegen, Wild, Kaninchen"]
["Weidejahr:",2020,null,null,null,null,null,{"$f":"VLOOKUP(G4,'Daten Nährstoffanfall'!$C$206:$D$222,2,FALSE)","v":{"$error":"#N/A"}},{"$f":"VLOOKUP(G4,'Daten Nährstoffanfall'!$C$206:$E$222,3,FALSE)","v":{"$error":"#N/A"}},{"$f":"VLOOKUP(G4,'Daten Nährstoffanfall'!$C$206:$F$222,4,FALSE)","v":{"$error":"#N/A"}},null,null,{"$f":"IFERROR(IF(((H4*(K4/365))*(L4/24)*F4)*0.55,((H4*(K4/365))*(L4/24)*F4)*0.55,\"\"),\"\")","v":""},{"$f":"M4/E4","v":{"$error":"#VALUE!"}},{"$f":"IFERROR(IF(((I4*(K4/365)*(L4/24)*F4)*0.55),((I4*(K4/365)*(L4/24)*F4)),\"\"),\"\")","v":""},{"$f":"O4/E4","v":{"$error":"#VALUE!"}},{"$f":"IFERROR(IF(((J4*(K4/365)*(L4/24)*F4)*0.55),((J4*(K4/365)*(L4/24)*F4)),\"\"),\"\")","v":""},"Reitpferde, 500 - 600 kg LM; leichte Arbeit; Stallhaltung",51.1,23.4,57.5]
["Unternehmernummer:",null,null,null,null,null,null,{"$f":"VLOOKUP(G5,'Daten Nährstoffanfall'!$C$206:$D$222,2,FALSE)","v":{"$error":"#N/A"}},{"$f":"VLOOKUP(G5,'Daten Nährstoffanfall'!$C$206:$E$222,3,FALSE)","v":{"$error":"#N/A"}},{"$f":"VLOOKUP(G5,'Daten Nährstoffanfall'!$C$206:$F$222,4,FALSE)","v":{"$error":"#N/A"}},null,null,{"$f":"IFERROR(IF(((H5*(K5/365))*(L5/24)*F5)*0.55,((H5*(K5/365))*(L5/24)*F5)*0.55,\"\"),\"\")","v":""},{"$f":"M5/E5","v":{"$error":"#VALUE!"}},{"$f":"IFERROR(IF(((I5*(K5/365)*(L5/24)*F5)*0.55),((I5*(K5/365)*(L5/24)*F5)),\"\"),\"\")","v":""},{"$f":"O5/E5","v":{"$error":"#VALUE!"}},{"$f":"IFERROR(IF(((J5*(K5/365)*(L5/24)*F5)*0.55),((J5*(K5/365)*(L5/24)*F5)),\"\"),\"\")","v":""},"Reitpferde, 500 - 600 kg LM; leichte Arbeit; Stall-/Weidehaltung",53.6,23.4,67]
["Name:",null,null,null,null,null,null,{"$f":"VLOOKUP(G6,'Daten Nährstoffanfall'!$C$206:$D$222,2,FALSE)","v":{"$error":"#N/A"}},{"$f":"VLOOKUP(G6,'Daten Nährstoffanfall'!$C$206:$E$222,3,FALSE)","v":{"$error":"#N/A"}},{"$f":"VLOOKUP(G6,'Daten Nährstoffanfall'!$C$206:$F$222,4,FALSE)","v":{"$error":"#N/A"}},null,null,"",{"$error":"#VALUE!"},"",{"$error":"#VALUE!"},"","Reitponys, 300 kg LM; leichte Arbeit; Stallhaltung",34.9,16.5,47]
["Vorname:",null,null,null,null,null,null,{"$f":"VLOOKUP(G7,'Daten Nährstoffanfall'!$C$206:$D$222,2,FALSE)","v":{"$error":"#N/A"}},{"$f":"VLOOKUP(G7,'Daten Nährstoffanfall'!$C$206:$E$222,3,FALSE)","v":{"$error":"#N/A"}},{"$f":"VLOOKUP(G7,'Daten Nährstoffanfall'!$C$206:$F$222,4,FALSE)","v":{"$error":"#N/A"}},null,null,"",{"$error":"#VALUE!"},"",{"$error":"#VALUE!"},"","Reitponys, 300 kg LM; leichte Arbeit; Stall-/Weidehaltung",33.4,15.3,51]
["Straße: ",null,null,null,null,null,null,{"$f":"VLOOKUP(G8,'Daten Nährstoffanfall'!$C$206:$D$222,2,FALSE)","v":{"$error":"#N/A"}},{"$f":"VLOOKUP(G8,'Daten Nährstoffanfall'!$C$206:$E$222,3,FALSE)","v":{"$error":"#N/A"}},{"$f":"VLOOKUP(G8,'Daten Nährstoffanfall'!$C$206:$F$222,4,FALSE)","v":{"$error":"#N/A"}},null,null,"",{"$error":"#VALUE!"},"",{"$f":"O8/E8","v":{"$error":"#VALUE!"}},"","Zuchtstuten, Stall-/Weidehaltung; Großpferd; 600 kg LM;   0,5 Fohlen/Jahr",63.5,28,73.7]
["PLZ:",null,null,null,null,null,null,{"$f":"VLOOKUP(G9,'Daten Nährstoffanfall'!$C$206:$D$222,2,FALSE)","v":{"$error":"#N/A"}},{"$f":"VLOOKUP(G9,'Daten Nährstoffanfall'!$C$206:$E$222,3,FALSE)","v":{"$error":"#N/A"}},{"$f":"VLOOKUP(G9,'Daten Nährstoffanfall'!$C$206:$F$222,4,FALSE)","v":{"$error":"#N/A"}},null,null,"",{"$error":"#VALUE!"},"",{"$error":"#VALUE!"},"","Zuchtstuten, Stall-/Weidehaltung; Pony 350 kg LM; 0,5 Fohlen/Jahr",42.3,18.399999999999999,56.3]
["Ort:",null,null,null,null,null,null,{"$f":"VLOOKUP(G10,'Daten Nährstoffanfall'!$C$206:$D$222,2,FALSE)","v":{"$error":"#N/A"}},{"$f":"VLOOKUP(G10,'Daten Nährstoffanfall'!$C$206:$E$222,3,FALSE)","v":{"$error":"#N/A"}},{"$f":"VLOOKUP(G10,'Daten Nährstoffanfall'!$C$206:$F$222,4,FALSE)","v":{"$error":"#N/A"}},null,null,"",{"$error":"#VALUE!"},"",{"$error":"#VALUE!"},"","Aufzuchtpferde, Stall-/Weidehaltung; Großpferd; 6. - 36. Monat;  365 kg Zuwachs",44.5,18.899999999999999,54.3]
["Betriebsfläche in ha:",null,null,null,null,null,null,{"$f":"VLOOKUP(G11,'Daten Nährstoffanfall'!$C$206:$D$222,2,FALSE)","v":{"$error":"#N/A"}},{"$f":"VLOOKUP(G11,'Daten Nährstoffanfall'!$C$206:$E$222,3,FALSE)","v":{"$error":"#N/A"}},{"$f":"VLOOKUP(G11,'Daten Nährstoffanfall'!$C$206:$F$222,4,FALSE)","v":{"$error":"#N/A"}},null,null,"",{"$error":"#VALUE!"},"",{"$error":"#VALUE!"},"","Aufzuchtpferde, Stall-/Weidehaltung; Pony; 6. - 36. Monat;   150 kg Zuwachs",31.6,13.5,42]
["Dauergrünland in ha:",null,null,null,null,null,null,{"$f":"VLOOKUP(G12,'Daten Nährstoffanfall'!$C$206:$D$222,2,FALSE)","v":{"$error":"#N/A"}},{"$f":"VLOOKUP(G12,'Daten Nährstoffanfall'!$C$206:$E$222,3,FALSE)","v":{"$error":"#N/A"}},{"$f":"VLOOKUP(G12,'Daten Nährstoffanfall'!$C$206:$F$222,4,FALSE)","v":{"$error":"#N/A"}},null,null,"",{"$error":"#VALUE!"},"",{"$error":"#VALUE!"},"","Lammfleischerzeugung, 1,5 Lämmer/Mutterschaf;  40 kg Zuwachs/Lamm; konventionell",20.100000000000001,6.2,22]
[null,null,null,null,null,null,null,{"$f":"VLOOKUP(G13,'Daten Nährstoffanfall'!$C$206:$D$222,2,FALSE)","v":{"$error":"#N/A"}},{"$f":"VLOOKUP(G13,'Daten Nährstoffanfall'!$C$206:$E$222,3,FALSE)","v":{"$error":"#N/A"}},{"$f":"VLOOKUP(G13,'Daten Nährstoffanfall'!$C$206:$F$222,4,FALSE)","v":{"$error":"#N/A"}},null,null,"",{"$error":"#VALUE!"},"",{"$error":"#VALUE!"},"","Lammfleischerzeugung, 1,1 Lämmer/Mutterschaf;  40 kg Zuwachs/Lamm; extensiv",17.600000000000001,5,17]
[null,null,null,null,null,null,null,{"$f":"VLOOKUP(G14,'Daten Nährstoffanfall'!$C$206:$D$222,2,FALSE)","v":{"$error":"#N/A"}},{"$f":"VLOOKUP(G14,'Daten Nährstoffanfall'!$C$206:$E$222,3,FALSE)","v":{"$error":"#N/A"}},{"$f":"VLOOKUP(G14,'Daten Nährstoffanfall'!$C$206:$F$222,4,FALSE)","v":{"$error":"#N/A"}},null,null,"",{"$error":"#VALUE!"},"",{"$error":"#VALUE!"},"","Ziegenmilcherzeugung, 800 kg Milch/Ziege/Jahr;  1,5 Lämmer/Ziege mit 16 kg Zuwachs/Lamm",15.2,5.7,18]
[null,null,null,null,null,null,null,{"$f":"VLOOKUP(G15,'Daten Nährstoffanfall'!$C$206:$D$222,2,FALSE)","v":{"$error":"#N/A"}},{"$f":"VLOOKUP(G15,'Daten Nährstoffanfall'!$C$206:$E$222,3,FALSE)","v":{"$error":"#N/A"}},{"$f":"VLOOKUP(G15,'Daten Nährstoffanfall'!$C$206:$F$222,4,FALSE)","v":{"$error":"#N/A"}},null,null,"",{"$error":"#VALUE!"},"",{"$error":"#VALUE!"},"","Lämmer, Schafe bis 1 Jahr, konventionell",5.9,1.9,6.5]
[null,null,null,null,null,null,null,{"$f":"VLOOKUP(G16,'Daten Nährstoffanfall'!$C$206:$D$222,2,FALSE)","v":{"$error":"#N/A"}},{"$f":"VLOOKUP(G16,'Daten Nährstoffanfall'!$C$206:$E$222,3,FALSE)","v":{"$error":"#N/A"}},{"$f":"VLOOKUP(G16,'Daten Nährstoffanfall'!$C$206:$F$222,4,FALSE)","v":{"$error":"#N/A"}},null,null,"",{"$error":"#VALUE!"},"",{"$error":"#VALUE!"},"","Mutterschafe (ohne Lamm), andere Schafe, konventionell",14.2,4.3,15.5]
[null,null,null,null,null,null,null,{"$f":"VLOOKUP(G17,'Daten Nährstoffanfall'!$C$206:$D$222,2,FALSE)","v":{"$error":"#N/A"}},{"$f":"VLOOKUP(G17,'Daten Nährstoffanfall'!$C$206:$E$222,3,FALSE)","v":{"$error":"#N/A"}},{"$f":"VLOOKUP(G17,'Daten Nährstoffanfall'!$C$206:$F$222,4,FALSE)","v":{"$error":"#N/A"}},null,null,"",{"$error":"#VALUE!"},"",{"$error":"#VALUE!"},"","Kaninchenhaltung, 52 aufgezogene Jungtiere/Häsin/Jahr;  Aufzucht bis 0,6 kg LM",2.6,1.5,2.1]
[null,null,null,null,null,null,null,{"$f":"VLOOKUP(G18,'Daten Nährstoffanfall'!$C$206:$D$222,2,FALSE)","v":{"$error":"#N/A"}},{"$f":"VLOOKUP(G18,'Daten Nährstoffanfall'!$C$206:$E$222,3,FALSE)","v":{"$error":"#N/A"}},{"$f":"VLOOKUP(G18,'Daten Nährstoffanfall'!$C$206:$F$222,4,FALSE)","v":{"$error":"#N/A"}},null,null,"",{"$error":"#VALUE!"},"",{"$error":"#VALUE!"},"","Kaninchenhaltung, 52 aufgezogene Jungtiere/Häsin/Jahr;  Aufzucht bis 3 kg LM",9.6999999999999993,5.4,8.3000000000000007]
[null,null,null,null,null,null,null,{"$f":"VLOOKUP(G19,'Daten Nährstoffanfall'!$C$206:$D$222,2,FALSE)","v":{"$error":"#N/A"}},{"$f":"VLOOKUP(G19,'Daten Nährstoffanfall'!$C$206:$E$222,3,FALSE)","v":{"$error":"#N/A"}},{"$f":"VLOOKUP(G19,'Daten Nährstoffanfall'!$C$206:$F$222,4,FALSE)","v":{"$error":"#N/A"}},null,null,"",{"$error":"#VALUE!"},"",{"$error":"#VALUE!"},"","Kaninchenmast, von 0,6 bis 3 kg LM; 14 kg Zuwachs/Platz",0.7,0.4,0.9]
[null,null,null,null,null,null,null,{"$f":"VLOOKUP(G20,'Daten Nährstoffanfall'!$C$206:$D$222,2,FALSE)","v":{"$error":"#N/A"}},{"$f":"VLOOKUP(G20,'Daten Nährstoffanfall'!$C$206:$E$222,3,FALSE)","v":{"$error":"#N/A"}},{"$f":"VLOOKUP(G20,'Daten Nährstoffanfall'!$C$206:$F$222,4,FALSE)","v":{"$error":"#N/A"}},null,null,"",{"$error":"#VALUE!"},"",{"$error":"#VALUE!"},"","Damtierfleischproduktion 45 kg Zuwachs,   (Alttier mit 0,85 Kalb)",21.6,6.2,24]
[null,null,null,null,null,null,null,{"$f":"VLOOKUP(G21,'Daten Nährstoffanfall'!$C$206:$D$222,2,FALSE)","v":{"$error":"#N/A"}},{"$f":"VLOOKUP(G21,'Daten Nährstoffanfall'!$C$206:$E$222,3,FALSE)","v":{"$error":"#N/A"}},{"$f":"VLOOKUP(G21,'Daten Nährstoffanfall'!$C$206:$F$222,4,FALSE)","v":{"$error":"#N/A"}},null,null,"",{"$error":"#VALUE!"},"",{"$error":"#VALUE!"},""]
[null,null,null,null,null,null,null,{"$f":"VLOOKUP(G22,'Daten Nährstoffanfall'!$C$206:$D$222,2,FALSE)","v":{"$error":"#N/A"}},{"$f":"VLOOKUP(G22,'Daten Nährstoffanfall'!$C$206:$E$222,3,FALSE)","v":{"$error":"#N/A"}},{"$f":"VLOOKUP(G22,'Daten Nährstoffanfall'!$C$206:$F$222,4,FALSE)","v":{"$error":"#N/A"}},null,null,"",{"$error":"#VALUE!"},"",{"$error":"#VALUE!"},""]
[null,null,null,null,null,null,null,{"$f":"VLOOKUP(G23,'Daten Nährstoffanfall'!$C$206:$D$222,2,FALSE)","v":{"$error":"#N/A"}},{"$f":"VLOOKUP(G23,'Daten Nährstoffanfall'!$C$206:$E$222,3,FALSE)","v":{"$error":"#N/A"}},{"$f":"VLOOKUP(G23,'Daten Nährstoffanfall'!$C$206:$F$222,4,FALSE)","v":{"$error":"#N/A"}},null,null,"",{"$error":"#VALUE!"},"",{"$error":"#VALUE!"},""]
[null,null,null,null,null,null,null,{"$f":"VLOOKUP(G24,'Daten Nährstoffanfall'!$C$206:$D$222,2,FALSE)","v":{"$error":"#N/A"}},{"$f":"VLOOKUP(G24,'Daten Nährstoffanfall'!$C$206:$E$222,3,FALSE)","v":{"$error":"#N/A"}},{"$f":"VLOOKUP(G24,'Daten Nährstoffanfall'!$C$206:$F$222,4,FALSE)","v":{"$error":"#N/A"}},null,null,"",{"$error":"#VALUE!"},"",{"$error":"#VALUE!"},""]
[null,null,null,null,null,null,null,{"$f":"VLOOKUP(G25,'Daten Nährstoffanfall'!$C$206:$D$222,2,FALSE)","v":{"$error":"#N/A"}},{"$f":"VLOOKUP(G25,'Daten Nährstoffanfall'!$C$206:$E$222,3,FALSE)","v":{"$error":"#N/A"}},{"$f":"VLOOKUP(G25,'Daten Nährstoffanfall'!$C$206:$F$222,4,FALSE)","v":{"$error":"#N/A"}},null,null,"",{"$error":"#VALUE!"},"",{"$error":"#VALUE!"},""]
[null,null,null,null,null,null,null,{"$f":"VLOOKUP(G26,'Daten Nährstoffanfall'!$C$206:$D$222,2,FALSE)","v":{"$error":"#N/A"}},{"$f":"VLOOKUP(G26,'Daten Nährstoffanfall'!$C$206:$E$222,3,FALSE)","v":{"$error":"#N/A"}},{"$f":"VLOOKUP(G26,'Daten Nährstoffanfall'!$C$206:$F$222,4,FALSE)","v":{"$error":"#N/A"}},null,null,"",{"$error":"#VALUE!"},"",{"$error":"#VALUE!"},""]
[null,null,null,null,null,null,null,{"$f":"VLOOKUP(G27,'Daten Nährstoffanfall'!$C$206:$D$222,2,FALSE)","v":{"$error":"#N/A"}},{"$f":"VLOOKUP(G27,'Daten Nährstoffanfall'!$C$206:$E$222,3,FALSE)","v":{"$error":"#N/A"}},{"$f":"VLOOKUP(G27,'Daten Nährstoffanfall'!$C$206:$F$222,4,FALSE)","v":{"$error":"#N/A"}},null,null,"",{"$error":"#VALUE!"},"",{"$error":"#VALUE!"},""]
[null,null,null,null,null,null,null,{"$f":"VLOOKUP(G28,'Daten Nährstoffanfall'!$C$206:$D$222,2,FALSE)","v":{"$error":"#N/A"}},{"$f":"VLOOKUP(G28,'Daten Nährstoffanfall'!$C$206:$E$222,3,FALSE)","v":{"$error":"#N/A"}},{"$f":"VLOOKUP(G28,'Daten Nährstoffanfall'!$C$206:$F$222,4,FALSE)","v":{"$error":"#N/A"}},null,null,"",{"$error":"#VALUE!"},"",{"$error":"#VALUE!"},""]
["Am Ende der Weideperiode auszufüllen!",null,null,null,null,null,null,null,null,null,"Summe:",null,{"$f":"SUM(M4:M28)","v":0},{"$f":"M29/E29","v":{"$error":"#DIV/0!"}},{"$f":"SUM(O4:O28)","v":0},{"$error":"#DIV/0!"},{"$f":"SUM(Q4:Q28)","v":0}]
["Marvin Serve - LK NRW",null,null,null,null,null,null,null,null,null,"Marvin Serve - LK NRW"]
[]
[]
["Seite 1 - Diese Angaben sind freiwillig und dienen der Übersichtlichkeit bei einer eventuellen Prüfung",null,null,null,null,"Seite 2 - Pflichtangaben zur Dokumentation der Weidehaltung und für die Anlage 5 der Düngeverordnung"]

{"sheet":"Doku Schwein","index":2,"n_rows":132,"n_cols":21,"rows_kept":132,"cut":false,"hidden":false,"merged":[[32,0,32,4],[32,5,32,16],[29,10,31,16],[0,10,0,12],[0,14,0,16],[28,10,28,11],[1,12,1,16],[0,6,1,6],[0,0,1,5],[2,2,28,2],[28,0,28,1],[29,0,31,4],[29,5,31,6]]}
["Weidetagebuch",null,null,null,null,null,"Weidetagebuch",null,null,null,"Ausgefüllt am:"]
[null,null,null,null,null,null,null,null,null,null,null,null,"Anfall auf der Weide"]
[null,null,null,"Weideverfahren","Größe (ha)","Anzahl Tiere","Tierart","N (kg/Jahr)","P2O5 (kg/Jahr)","K2O (kg/Jahr)","Tage","Stunden","N-Anfall (kg)","N-Anfall (kg/ha)","P2O5-Anfall (kg)","P2O5-Anfall (kg/ha)","K2O-Anfall (kg)","Sauenhaltung, Ferkelaufzucht bis 8 kg LM; 22 aufgezogene Ferkel; 216 kg Zuwachs je Platz/Jahr;  Universalfutter",27.1,12.6,12.8]
["Weidejahr:",2020,null,null,null,null,null,{"$f":"IFERROR(VLOOKUP(G4,'Daten Nährstoffanfall'!$C$50:$D$178,2,FALSE),\"\")","v":""},{"$f":"IFERROR(VLOOKUP(G4,'Daten Nährstoffanfall'!$C$50:$E$178,3,FALSE),\"\")","v":""},{"$f":"IFERROR(VLOOKUP(G4,'Daten Nährstoffanfall'!$C$50:$F$178,4,FALSE),\"\")","v":""},null,null,{"$f":"IFERROR(((H4*(K4/365))*(L4/24)*F4)*0.7,\"\")","v":""},{"$f":"M4/E4","v":{"$error":"#VALUE!"}},{"$f":"IFERROR(((I4*(K4/365)*L4/24)*F4),\"\")","v":""},{"$f":"O4/E4","v":{"$error":"#VALUE!"}},{"$f":"IFERROR(((J4*(K4/365)*(L4/24)*F4)),\"\")","v":""},"Sauenhaltung, Ferkelaufzucht bis 8 kg LM; 22 aufgezogene Ferkel; 216 kg Zuwachs je Platz/Jahr; N-/P-reduziert",24,11,11.6]
["Unternehmernummer:",null,null,null,null,null,null,{"$f":"IFERROR(VLOOKUP(G5,'Daten Nährstoffanfall'!$C$50:$D$178,2,FALSE),\"\")","v":""},{"$f":"IFERROR(VLOOKUP(G5,'Daten Nährstoffanfall'!$C$50:$E$178,3,FALSE),\"\")","v":""},{"$f":"IFERROR(VLOOKUP(G5,'Daten Nährstoffanfall'!$C$50:$F$178,4,FALSE),\"\")","v":""},null,null,{"$f":"IFERROR(((H5*(K5/365))*(L5/24)*F5)*0.7,\"\")","v":""},{"$f":"M5/E5","v":{"$error":"#VALUE!"}},{"$f":"IFERROR(((I5*(K5/365)*L5/24)*F5),\"\")","v":""},{"$f":"O5/E5","v":{"$error":"#VALUE!"}},{"$f":"IFERROR(((J5*(K5/365)*(L5/24)*F5)),\"\")","v":""},"Sauenhaltung, Ferkelaufzucht bis 8 kg LM; 22 aufgezogene Ferkel; 216 kg Zuwachs je Platz/Jahr; stark N-/P- reduziert",23,10.3,11.6]
["Name:",null,null,null,null,null,null,{"$f":"IFERROR(VLOOKUP(G6,'Daten Nährstoffanfall'!$C$50:$D$178,2,FALSE),\"\")","v":""},{"$f":"IFERROR(VLOOKUP(G6,'Daten Nährstoffanfall'!$C$50:$E$178,3,FALSE),\"\")","v":""},{"$f":"IFERROR(VLOOKUP(G6,'Daten Nährstoffanfall'!$C$50:$F$178,4,FALSE),\"\")","v":""},null,null,"",{"$f":"M6/E6","v":{"$error":"#VALUE!"}},"",{"$error":"#VALUE!"},"","Sauenhaltung, Ferkelaufzucht bis 8 kg LM; 22 aufgezogene Ferkel; 216 kg Zuwachs je Platz/Jahr; sehr stark N-/P- reduziert",22,9.6559633027522942,10.602409638554219]
["Vorname:",null,null,null,null,null,null,{"$f":"IFERROR(VLOOKUP(G7,'Daten Nährstoffanfall'!$C$50:$D$178,2,FALSE),\"\")","v":""},{"$f":"IFERROR(VLOOKUP(G7,'Daten Nährstoffanfall'!$C$50:$E$178,3,FALSE),\"\")","v":""},{"$f":"IFERROR(VLOOKUP(G7,'Daten Nährstoffanfall'!$C$50:$F$178,4,FALSE),\"\")","v":""},null,null,"",{"$f":"M7/E7","v":{"$error":"#VALUE!"}},"",{"$error":"#VALUE!"},"","Sauenhaltung, Ferkelaufzucht bis 8 kg LM; 25 aufgezogene Ferkel; 239 kg Zuwachs je Platz/Jahr;  Universalfutter",27.3,12.6,12.8]
["Straße: ",null,null,null,null,null,null,{"$f":"IFERROR(VLOOKUP(G8,'Daten Nährstoffanfall'!$C$50:$D$178,2,FALSE),\"\")","v":""},{"$f":"IFERROR(VLOOKUP(G8,'Daten Nährstoffanfall'!$C$50:$E$178,3,FALSE),\"\")","v":""},{"$f":"IFERROR(VLOOKUP(G8,'Daten Nährstoffanfall'!$C$50:$F$178,4,FALSE),\"\")","v":""},null,null,"",{"$error":"#VALUE!"},"",{"$f":"O8/E8","v":{"$error":"#VALUE!"}},"","Sauenhaltung, Ferkelaufzucht bis 8 kg LM; 25 aufgezogene Ferkel; 239 kg Zuwachs je Platz/Jahr; N-/P-reduziert",24.1,11.2,11.6]
["PLZ:",null,null,null,null,null,null,{"$f":"IFERROR(VLOOKUP(G9,'Daten Nährstoffanfall'!$C$50:$D$178,2,FALSE),\"\")","v":""},{"$f":"IFERROR(VLOOKUP(G9,'Daten Nährstoffanfall'!$C$50:$E$178,3,FALSE),\"\")","v":""},{"$f":"IFERROR(VLOOKUP(G9,'Daten Nährstoffanfall'!$C$50:$F$178,4,FALSE),\"\")","v":""},null,null,"",{"$error":"#VALUE!"},"",{"$error":"#VALUE!"},"","Sauenhaltung, Ferkelaufzucht bis 8 kg LM; 25 aufgezogene Ferkel; 239 kg Zuwachs je Platz/Jahr; stark N-/P-reduziert",23.1,10.3,11.6]
["Ort:",null,null,null,null,null,null,{"$f":"IFERROR(VLOOKUP(G10,'Daten Nährstoffanfall'!$C$50:$D$178,2,FALSE),\"\")","v":""},{"$f":"IFERROR(VLOOKUP(G10,'Daten Nährstoffanfall'!$C$50:$E$178,3,FALSE),\"\")","v":""},{"$f":"IFERROR(VLOOKUP(G10,'Daten Nährstoffanfall'!$C$50:$F$178,4,FALSE),\"\")","v":""},null,null,"",{"$error":"#VALUE!"},"",{"$error":"#VALUE!"},"","Sauenhaltung, Ferkelaufzucht bis 8 kg LM; 25 aufgezogene Ferkel; 239 kg Zuwachs je Platz/Jahr; sehr stark N-/P-reduziert",22.1,9.6788990825688064,10.843373493975903]
["Betriebsfläche in ha:",null,null,null,null,null,null,{"$f":"IFERROR(VLOOKUP(G11,'Daten Nährstoffanfall'!$C$50:$D$178,2,FALSE),\"\")","v":""},{"$f":"IFERROR(VLOOKUP(G11,'Daten Nährstoffanfall'!$C$50:$E$178,3,FALSE),\"\")","v":""},{"$f":"IFERROR(VLOOKUP(G11,'Daten Nährstoffanfall'!$C$50:$F$178,4,FALSE),\"\")","v":""},null,null,"",{"$error":"#VALUE!"},"",{"$error":"#VALUE!"},"","Sauenhaltung, Ferkelaufzucht bis 8 kg LM; 28 aufgezogene Ferkel; 264 kg Zuwachs je Platz/Jahr,  Universalfutter",27.5,12.8,13.1]
["Dauergrünland in ha:",null,null,null,null,null,null,{"$f":"IFERROR(VLOOKUP(G12,'Daten Nährstoffanfall'!$C$50:$D$178,2,FALSE),\"\")","v":""},{"$f":"IFERROR(VLOOKUP(G12,'Daten Nährstoffanfall'!$C$50:$E$178,3,FALSE),\"\")","v":""},{"$f":"IFERROR(VLOOKUP(G12,'Daten Nährstoffanfall'!$C$50:$F$178,4,FALSE),\"\")","v":""},null,null,"",{"$error":"#VALUE!"},"",{"$error":"#VALUE!"},"","Sauenhaltung, Ferkelaufzucht bis 8 kg LM; 28 aufgezogene Ferkel; 264 kg Zuwachs je Platz/Jahr, N-/P-reduziert",24.2,11.2,11.8]
[null,null,null,null,null,null,null,{"$f":"IFERROR(VLOOKUP(G13,'Daten Nährstoffanfall'!$C$50:$D$178,2,FALSE),\"\")","v":""},{"$f":"IFERROR(VLOOKUP(G13,'Daten Nährstoffanfall'!$C$50:$E$178,3,FALSE),\"\")","v":""},{"$f":"IFERROR(VLOOKUP(G13,'Daten Nährstoffanfall'!$C$50:$F$178,4,FALSE),\"\")","v":""},null,null,"",{"$error":"#VALUE!"},"",{"$error":"#VALUE!"},"","Sauenhaltung, Ferkelaufzucht bis 8 kg LM; 28 aufgezogene Ferkel 264 kg Zuwachs Platz/Jahr; stark N-P/-reduziert",23.2,10.3,11.8]
[null,null,null,null,null,null,null,{"$f":"IFERROR(VLOOKUP(G14,'Daten Nährstoffanfall'!$C$50:$D$178,2,FALSE),\"\")","v":""},{"$f":"IFERROR(VLOOKUP(G14,'Daten Nährstoffanfall'!$C$50:$E$178,3,FALSE),\"\")","v":""},{"$f":"IFERROR(VLOOKUP(G14,'Daten Nährstoffanfall'!$C$50:$F$178,4,FALSE),\"\")","v":""},null,null,"",{"$error":"#VALUE!"},"",{"$error":"#VALUE!"},"","Sauenhaltung, Ferkelaufzucht bis 8 kg LM; 28 aufgezogene Ferkel 264 kg Zuwachs Platz/Jahr; sehr stark N-P/-reduziert","22,3",9.7247706422018361,11.08433734939759]
[null,null,null,null,null,null,null,{"$f":"IFERROR(VLOOKUP(G15,'Daten Nährstoffanfall'!$C$50:$D$178,2,FALSE),\"\")","v":""},{"$f":"IFERROR(VLOOKUP(G15,'Daten Nährstoffanfall'!$C$50:$E$178,3,FALSE),\"\")","v":""},{"$f":"IFERROR(VLOOKUP(G15,'Daten Nährstoffanfall'!$C$50:$F$178,4,FALSE),\"\")","v":""},null,null,"",{"$error":"#VALUE!"},"",{"$error":"#VALUE!"},"","Sauenhaltung, Ferkelaufzucht bis 8 kg LM; 31 aufgezogene Ferkel 288 kg Zuwachs Platz/Jahr; stark N-P/-reduziert",23.3,10.3095,12.05]
[null,null,null,null,null,null,null,{"$f":"IFERROR(VLOOKUP(G16,'Daten Nährstoffanfall'!$C$50:$D$178,2,FALSE),\"\")","v":""},{"$f":"IFERROR(VLOOKUP(G16,'Daten Nährstoffanfall'!$C$50:$E$178,3,FALSE),\"\")","v":""},{"$f":"IFERROR(VLOOKUP(G16,'Daten Nährstoffanfall'!$C$50:$F$178,4,FALSE),\"\")","v":""},null,null,"",{"$error":"#VALUE!"},"",{"$error":"#VALUE!"},"","Sauenhaltung, Ferkelaufzucht bis 8 kg LM; 31 aufgezogene Ferkel 288 kg Zuwachs Platz/Jahr; sehr stark N-P/-reduziert",22.3,9.7367499999999989,11.327000000000002]
[null,null,null,null,null,null,null,{"$f":"IFERROR(VLOOKUP(G17,'Daten Nährstoffanfall'!$C$50:$D$178,2,FALSE),\"\")","v":""},{"$f":"IFERROR(VLOOKUP(G17,'Daten Nährstoffanfall'!$C$50:$E$178,3,FALSE),\"\")","v":""},{"$f":"IFERROR(VLOOKUP(G17,'Daten Nährstoffanfall'!$C$50:$F$178,4,FALSE),\"\")","v":""},null,null,"",{"$error":"#VALUE!"},"",{"$error":"#VALUE!"},"","Sauenhaltung, Ferkelaufzucht bis 8 kg LM; 34 aufgezogene Ferkel 312 kg Zuwachs Platz/Jahr; stark N-P/-reduziert",23.4,10.355319999999999,12.291]
[null,null,null,null,null,null,null,{"$f":"IFERROR(VLOOKUP(G18,'Daten Nährstoffanfall'!$C$50:$D$178,2,FALSE),\"\")","v":""},{"$f":"IFERROR(VLOOKUP(G18,'Daten Nährstoffanfall'!$C$50:$E$178,3,FALSE),\"\")","v":""},{"$f":"IFERROR(VLOOKUP(G18,'Daten Nährstoffanfall'!$C$50:$F$178,4,FALSE),\"\")","v":""},null,null,"",{"$error":"#VALUE!"},"",{"$error":"#VALUE!"},"","Sauenhaltung, Ferkelaufzucht bis 8 kg LM; 34 aufgezogene Ferkel 312 kg Zuwachs Platz/Jahr; sehr stark N-P/-reduziert",22.4,9.7596599999999984,11.568]
[null,null,null,null,null,null,null,{"$f":"IFERROR(VLOOKUP(G19,'Daten Nährstoffanfall'!$C$50:$D$178,2,FALSE),\"\")","v":""},{"$f":"IFERROR(VLOOKUP(G19,'Daten Nährstoffanfall'!$C$50:$E$178,3,FALSE),\"\")","v":""},{"$f":"IFERROR(VLOOKUP(G19,'Daten Nährstoffanfall'!$C$50:$F$178,4,FALSE),\"\")","v":""},null,null,"",{"$error":"#VALUE!"},"",{"$error":"#VALUE!"},""]
[null,null,null,null,null,null,null,{"$f":"IFERROR(VLOOKUP(G20,'Daten Nährstoffanfall'!$C$50:$D$178,2,FALSE),\"\")","v":""},{"$f":"IFERROR(VLOOKUP(G20,'Daten Nährstoffanfall'!$C$50:$E$178,3,FALSE),\"\")","v":""},{"$f":"IFERROR(VLOOKUP(G20,'Daten Nährstoffanfall'!$C$50:$F$178,4,FALSE),\"\")","v":""},null,null,"",{"$error":"#VALUE!"},"",{"$error":"#VALUE!"},"","Sauenhaltung, Ferkelaufzucht bis 28 kg LM; 22 aufgezogene Ferkel; 656 kg Zuwachs je Platz/Jahr;  Universalfutter",39.200000000000003,17.2,19.899999999999999]
[null,null,null,null,null,null,null,{"$f":"IFERROR(VLOOKUP(G21,'Daten Nährstoffanfall'!$C$50:$D$178,2,FALSE),\"\")","v":""},{"$f":"IFERROR(VLOOKUP(G21,'Daten Nährstoffanfall'!$C$50:$E$178,3,FALSE),\"\")","v":""},{"$f":"IFERROR(VLOOKUP(G21,'Daten Nährstoffanfall'!$C$50:$F$178,4,FALSE),\"\")","v":""},null,null,"",{"$error":"#VALUE!"},"",{"$error":"#VALUE!"},"","Sauenhaltung, Ferkelzaufzucht bis 28 kg LM; 22 aufgezogene Ferkel; 656 kg Zuwachs je Platz/Jahr; N-/P- reduziert",35.1,15.3,18.3]
[null,null,null,null,null,null,null,{"$f":"IFERROR(VLOOKUP(G22,'Daten Nährstoffanfall'!$C$50:$D$178,2,FALSE),\"\")","v":""},{"$f":"IFERROR(VLOOKUP(G22,'Daten Nährstoffanfall'!$C$50:$E$178,3,FALSE),\"\")","v":""},{"$f":"IFERROR(VLOOKUP(G22,'Daten Nährstoffanfall'!$C$50:$F$178,4,FALSE),\"\")","v":""},null,null,"",{"$error":"#VALUE!"},"",{"$error":"#VALUE!"},"","Sauenhaltung, Ferkelaufzucht bis 28 kg LM; 22 aufgezogene Ferkel; 656 kg Zuwachs je Platz/Jahr; stark N-/P- reduziert",33.5,14,18.3]
[null,null,null,null,null,null,null,{"$f":"IFERROR(VLOOKUP(G23,'Daten Nährstoffanfall'!$C$50:$D$178,2,FALSE),\"\")","v":""},{"$f":"IFERROR(VLOOKUP(G23,'Daten Nährstoffanfall'!$C$50:$E$178,3,FALSE),\"\")","v":""},{"$f":"IFERROR(VLOOKUP(G23,'Daten Nährstoffanfall'!$C$50:$F$178,4,FALSE),\"\")","v":""},null,null,"",{"$error":"#VALUE!"},"",{"$error":"#VALUE!"},"","Sauenhaltung, Ferkelaufzucht bis 28 kg LM; 22 aufgezogene Ferkel; 656 kg Zuwachs je Platz/Jahr; Sehr stark N-/P- reduziert","31,9",13.165137614678899,17.46987951807229]
[null,null,null,null,null,null,null,{"$f":"IFERROR(VLOOKUP(G24,'Daten Nährstoffanfall'!$C$50:$D$178,2,FALSE),\"\")","v":""},{"$f":"IFERROR(VLOOKUP(G24,'Daten Nährstoffanfall'!$C$50:$E$178,3,FALSE),\"\")","v":""},{"$f":"IFERROR(VLOOKUP(G24,'Daten Nährstoffanfall'!$C$50:$F$178,4,FALSE),\"\")","v":""},null,null,"",{"$error":"#VALUE!"},"",{"$error":"#VALUE!"},"","Sauenhaltung, Ferkelaufzucht bis 28 kg LM; 25 aufgezogene Ferkel; 711 kg Zuwachs je Platz/Jahr; Universalfutter",41.1,17.899999999999999,21.1]
[null,null,null,null,null,null,null,{"$f":"IFERROR(VLOOKUP(G25,'Daten Nährstoffanfall'!$C$50:$D$178,2,FALSE),\"\")","v":""},{"$f":"IFERROR(VLOOKUP(G25,'Daten Nährstoffanfall'!$C$50:$E$178,3,FALSE),\"\")","v":""},{"$f":"IFERROR(VLOOKUP(G25,'Daten Nährstoffanfall'!$C$50:$F$178,4,FALSE),\"\")","v":""},null,null,"",{"$error":"#VALUE!"},"",{"$error":"#VALUE!"},"","Sauenhaltung, Ferkelaufzucht bis 28 kg LM; 25 aufgezogene Ferkel; 711 kg Zuwachs je Platz/Jahr; N-/P- reduziert",36.799999999999997,16,19.5]
[null,null,null,null,null,null,null,{"$f":"IFERROR(VLOOKUP(G26,'Daten Nährstoffanfall'!$C$50:$D$178,2,FALSE),\"\")","v":""},{"$f":"IFERROR(VLOOKUP(G26,'Daten Nährstoffanfall'!$C$50:$E$178,3,FALSE),\"\")","v":""},{"$f":"IFERROR(VLOOKUP(G26,'Daten Nährstoffanfall'!$C$50:$F$178,4,FALSE),\"\")","v":""},null,null,"",{"$error":"#VALUE!"},"",{"$error":"#VALUE!"},"","Sauenhaltung; Ferkelaufzucht bis 28 kg LM; 25 aufgezogene Ferkel; 711 kg Zuwachs je Platz/Jahr; stark N-/P- reduziert",35,14.7,19.5]
[null,null,null,null,null,null,null,{"$f":"IFERROR(VLOOKUP(G27,'Daten Nährstoffanfall'!$C$50:$D$178,2,FALSE),\"\")","v":""},{"$f":"IFERROR(VLOOKUP(G27,'Daten Nährstoffanfall'!$C$50:$E$178,3,FALSE),\"\")","v":""},{"$f":"IFERROR(VLOOKUP(G27,'Daten Nährstoffanfall'!$C$50:$F$178,4,FALSE),\"\")","v":""},null,null,"",{"$error":"#VALUE!"},"",{"$error":"#VALUE!"},"","Sauenhaltung; Ferkelaufzucht bis 28 kg LM; 25 aufgezogene Ferkel; 711 kg Zuwachs je Platz/Jahr; sehr stark N-/P- reduziert","33,4",13.669724770642201,18.192771084337348]
[null,null,null,null,null,null,null,{"$f":"IFERROR(VLOOKUP(G28,'Daten Nährstoffanfall'!$C$50:$D$178,2,FALSE),\"\")","v":""},{"$f":"IFERROR(VLOOKUP(G28,'Daten Nährstoffanfall'!$C$50:$E$178,3,FALSE),\"\")","v":""},{"$f":"IFERROR(VLOOKUP(G28,'Daten Nährstoffanfall'!$C$50:$F$178,4,FALSE),\"\")","v":""},null,null,"",{"$error":"#VALUE!"},"",{"$error":"#VALUE!"},"","Sauenhaltung, Ferkelaufzucht bis 28 kg LM; 28 aufgezogene Ferkel; 824 kg Zuwachs je Platz/Jahr; Universalfutter",42.9,18.600000000000001,21.3]
["Am Ende der Weideperiode auszufüllen!",null,null,null,null,null,null,null,null,null,"Summe:",null,{"$f":"SUM(M4:M28)","v":0},{"$error":"#DIV/0!"},{"$f":"SUM(O4:O28)","v":0},{"$error":"#DIV/0!"},{"$f":"SUM(Q4:Q28)","v":0},"Sauenhaltung, Ferkelaufzucht bis 28 kg LM; 28 aufgezogene Ferkel; 824 kg Zuwachs je Platz/Jahr; N-/P_ reduziert",38.4,16.7,20.7]
["Mavin Serve - LK NRW",null,null,null,null,null,null,null,null,null,"Marvin Serve - LK NRW",null,null,null,null,null,null,"Sauenhaltung, Ferkelaufzucht bis 28 kg LM; 28 aufgezogene Ferkel; 824 kg Zuwachs je Platz/Jahr; stark N-/P- reduziert",36.6,15.1,20.7]
[null,null,null,null,null,null,null,null,null,null,null,null,null,null,null,null,null,"Sauenhaltung, Ferkelaufzucht bis 28 kg LM; 28 aufgezogene Ferkel; 824 kg Zuwachs je Platz/Jahr; sehr stark N-/P- reduziert","34,8",14.403669724770642,19.397590361445786]
[null,null,null,null,null,null,null,null,null,null,null,null,null,null,null,null,null,"Sauenhaltung, Ferkelaufzucht bis 28 kg LM; 31 aufgezogene Ferkel; 908 kg Zuwachs je Platz/Jahr; stark N-/P- reduziert",38.1,15.762079999999999,21.931000000000001]
["Seite 1 - Diese Angaben sind freiwillig und dienen der Übersichtlichkeit bei einer eventuellen Prüfung",null,null,null,null,"Seite 2 - Pflichtangaben zur Dokumentation der Weidehaltung und für die Anlage 5 der Düngeverordnung",null,null,null,null,null,null,null,null,null,null,null,"Sauenhaltung, Ferkelaufzucht bis 28 kg LM; 31 aufgezogene Ferkel; 908 kg Zuwachs je Platz/Jahr; sehr stark N-/P- reduziert",36.200000000000003,14.6624,20.484999999999999]
[null,null,null,null,null,null,null,null,null,null,null,null,null,null,null,null,null,"Sauenhaltung, Ferkelaufzucht bis 28 kg LM; 34 aufgezogene Ferkel; 992 kg Zuwachs je Platz/Jahr; stark N-/P- reduziert",39.700000000000003,16.33483,23.135999999999999]
[null,null,null,null,null,null,null,null,null,null,null,null,null,null,null,null,null,"Sauenhaltung, Ferkelaufzucht bis 28 kg LM; 34 aufgezogene Ferkel; 992 kg Zuwachs je Platz/Jahr; sehr stark N-/P- reduziert",37.700000000000003,15.16642,21.569499999999998]
[null,null,null,null,null,null,null,null,null,null,null,null,null,null,null,null,null,"spezialisierte Ferkelaufzucht,  8 bis 28 kg LM;  140 kg Zuwachs je Platz/Jahr; 7 Durchgänge; Ø-450g Tageszunahme, Universalfutter",3.8,1.4,2.2999999999999998]
[null,null,null,null,null,null,null,null,null,null,null,null,null,null,null,null,null,"spezialisierte Ferkelaufzucht,  ab 8 bzw. 28 kg LM;  140 kg Zuwachs je Platz/Jahr; 7 Durchgänge; Ø-450g Tageszunahme;  N-/P- reduziert",3.6,1.4,2.2000000000000002]
[null,null,null,null,null,null,null,null,null,null,null,null,null,null,null,null,null,"spezialisierte Ferkelaufzucht,  ab 8 bzw. 28 kg LM;  140 kg Zuwachs je Jahr/Platz; 7 Durchgänge; Ø-450 g Tageszunahme; stark N-/P- reduziert",3.36,1.2371400000000001,2.169]
[null,null,null,null,null,null,null,null,null,null,null,null,null,null,null,null,null,"spezialisierte Ferkelaufzucht,  ab 8 bzw. 28 kg LM;  140 kg Zuwachs je Jahr/Platz; 7 Durchgänge; Ø-450 g Tageszunahme; sehr stark N-/P- reduziert",3.15,1.12259,2.169]
[null,null,null,null,null,null,null,null,null,null,null,null,null,null,null,null,null,"spezialisierte Ferkelaufzucht,  8 bis 28 kg LKM;  160 kg Zuwachs je Jahr/Platz; 8 Durchgänge; Ø-500 g Tageszunahme; Universalfutter",4.2,1.6,2.5]
[null,null,null,null,null,null,null,null,null,null,null,null,null,null,null,null,null,"spezialisierte Ferkelaufzucht,  8 bis 28 kg LKM;  160 kg Zuwachs je Jahr/Platz; 8 Durchgänge; Ø-500 g Tageszunahme; N-/P- reduziert",3.8,1.4,2.4]
[null,null,null,null,null,null,null,null,null,null,null,null,null,null,null,null,null,"spezialisierte Ferkelaufzucht,  8 bis 28 kg LKM;  160 kg Zuwachs je Jahr/Platz; 8 Durchgänge; Ø-500 g Tageszunahme; stark N-/P- reduziert",3.6,1.3058699999999999,2.41]
[null,null,null,null,null,null,null,null,null,null,null,null,null,null,null,null,null,"spezialisierte Ferkelaufzucht,  8 bis 28 kg LKM;  160 kg Zuwachs je Jahr/Platz; 8 Durchgänge; Ø-500 g Tageszunahme; sehr stark N-/P- reduziert",3.44,1.1913199999999999,2.41]
[null,null,null,null,null,null,null,null,null,null,null,null,null,null,null,null,null,"Jungsauenaufzucht,  28 bis 115 kg LM;  180 kg Zuwachs je Platz/Jahr; 2,1 Durchgänge;  Universalfutter",10.8,5.5,4.9000000000000004]
[null,null,null,null,null,null,null,null,null,null,null,null,null,null,null,null,null,"Jungsauenaufzucht,  28 bis 115 kg LM;  180 kg Zuwachs je Platz/Jahr; 2,1 Durchgänge; N-/P-reduziert",9,4.5999999999999996,4.4000000000000004]
[null,null,null,null,null,null,null,null,null,null,null,null,null,null,null,null,null,"Jungsauenaufzucht,  28 bis 115 kg LM;  / 73 kg Zuwachs/Tier180 kg Zuwachs je Platz/Jahr; 2,47 Durchgänge;  Universalfutter",9.9,5.022935779816514,4.5662650602409638]
[null,null,null,null,null,null,null,null,null,null,null,null,null,null,null,null,null,"Jungsauenaufzucht,  28 bis 115 kg LM;  73 kg Zuwachs /Tier180 kg Zuwachs je Platz/Jahr; 2,47 Durchgänge; N-/P-reduziert",8.06,4.2201834862385326,4.1445783132530121]
[null,null,null,null,null,null,null,null,null,null,null,null,null,null,null,null,null,"Jungsaueneingliederung, 95 bis 135 kg LM;  240 Zuwachs je Platz/Jahr; 6 Durchgänge;  Universalfutter",15.4,8.5,7.5]
[null,null,null,null,null,null,null,null,null,null,null,null,null,null,null,null,null,"Jungsaueneingliederung,  95 bis 135 kg LM;  240 Zuwachs je Platz/Jahr; 6 Durchgänge; N-/P-reduziert",13.3,7.5,6.4]
[null,null,null,null,null,null,null,null,null,null,null,null,null,null,null,null,null,"Eberhaltung, 60 kg Zuwachs je Platz/Jahr ",22.1,9.6,8.8000000000000007]
[null,null,null,null,null,null,null,null,null,null,null,null,null,null,null,null,null,"arbeitsteilige Ferkelproduktion; Deckbetrieb 6,25 Umtriebe; 22 aufgezogene Ferkel; Universalfutter",22.4,9.4,9.64]
[null,null,null,null,null,null,null,null,null,null,null,null,null,null,null,null,null,"arbeitsteilige Ferkelproduktion; Deckbetrieb 6,25 Umtriebe; 22 aufgezogene Ferkel; N-/P- reduziert",18.100000000000001,8.5,8.8000000000000007]
[null,null,null,null,null,null,null,null,null,null,null,null,null,null,null,null,null,"arbeitsteilige Ferkelproduktion; Deckbetrieb 6,25 Umtriebe; 22 aufgezogene Ferkel; stark N-/P- reduziert",17.399999999999999,7.8,8.8000000000000007]
[null,null,null,null,null,null,null,null,null,null,null,null,null,null,null,null,null,"arbeitsteilige Ferkelproduktion; Deckbetrieb 6,25 Umtriebe; 25 aufgezogene Ferkel; Universalfutter",20.6,9.6,9.64]
[null,null,null,null,null,null,null,null,null,null,null,null,null,null,null,null,null,"arbeitsteilige Ferkelproduktion; Deckbetrieb 6,25 Umtriebe; 25 aufgezogene Ferkel;     N-/P- reduziert",18,8.5,8.8000000000000007]
[null,null,null,null,null,null,null,null,null,null,null,null,null,null,null,null,null,"arbeitsteilige Ferkelproduktion; Deckbetrieb 6,25 Umtriebe; 25 aufgezogene Ferkel; stark N-/P- reduziert",17.5,7.8,8.8000000000000007]
[null,null,null,null,null,null,null,null,null,null,null,null,null,null,null,null,null,"arbeitsteilige Ferkelproduktion; Deckbetrieb 6,25 Umtriebe; 28 aufgezogene Ferkel; Universalfutter",20.8,9.6,9.8800000000000008]
[null,null,null,null,null,null,null,null,null,null,null,null,null,null,null,null,null,"arbeitsteilige Ferkelproduktion; Deckbetrieb 6,25 Umtriebe; 28 aufgezogene Ferkel;     N-/P- reduziert",18.3,8.5,8.92]
[null,null,null,null,null,null,null,null,null,null,null,null,null,null,null,null,null,"arbeitsteilige Ferkelproduktion; Deckbetrieb 6,25 Umtriebe; 28 aufgezogene Ferkel; stark N-/P- reduziert",17.5,7.8,8.92]
[null,null,null,null,null,null,null,null,null,null,null,null,null,null,null,null,null,"arbeitsteilige Ferkelproduktion; Wartebetrieb 4,25 Umtriebe;  22 aufgezogene Ferkel; Universalfutter",17.3,8,8.19]
[null,null,null,null,null,null,null,null,null,null,null,null,null,null,null,null,null,"arbeitsteilige Ferkelproduktion; Wartebetrieb 4,25 Umtriebe; 22 abgesetzte Ferkel; N-/P-reduziert",15.3,7.1,7.35]
[null,null,null,null,null,null,null,null,null,null,null,null,null,null,null,null,null,"arbeitsteilige Ferkelproduktion; Wartebetrieb 4,25 Umtriebe; 22 abgesetzte Ferkel; stark N-/P- reduziert",14.7,6.4,7.35]
[null,null,null,null,null,null,null,null,null,null,null,null,null,null,null,null,null,"arbeitsteilige Ferkelproduktion; Wartebetrieb 4,25 Umtriebe; 25 abgesetzte Ferkel; Universalfutter",17.399999999999999,8,8.19]
[null,null,null,null,null,null,null,null,null,null,null,null,null,null,null,null,null,"arbeitsteilige Ferkelproduktion; Wartebetrieb 4,25 Umtriebe; 25 abgesetzte Ferkel;       N-/P-reduziert",15.4,7.1,7.35]
[null,null,null,null,null,null,null,null,null,null,null,null,null,null,null,null,null,"arbeitsteilige Ferkelproduktion; Wartebetrieb 4,25 Umtriebe; 25 abgesetzte Ferkel; stark N-/P- reduziert",14.7,6.6,7.35]
[null,null,null,null,null,null,null,null,null,null,null,null,null,null,null,null,null,"arbeitsteilige Ferkelproduktion; Wartebetrieb 4,25 Umtriebe; 28 abgesetzte Ferkel; Universalfutter",17.5,8.3000000000000007,8.31]
[null,null,null,null,null,null,null,null,null,null,null,null,null,null,null,null,null,"arbeitsteilige Ferkelproduktion; Wartebetrieb 4,25 Umtriebe; 28 abgesetzte Ferkel;       N-/P-reduziert",15.4,7.1,7.59]
[null,null,null,null,null,null,null,null,null,null,null,null,null,null,null,null,null,"arbeitsteilige Ferkelproduktion; Wartebetrieb 4,25 Umtriebe; 28 abgesetzte Ferkel; stark N-/P- reduziert",14.8,6.6,7.59]
[null,null,null,null,null,null,null,null,null,null,null,null,null,null,null,null,null,"arbeitsteilige Ferkelproduktion; Abferkelbetrieb 8,25 Umtriebe; bis 8 kg LM; 22 abgesetzte Ferkel;   Universalfutter",32.6,15.1,15.42]
[null,null,null,null,null,null,null,null,null,null,null,null,null,null,null,null,null,"arbeitsteilige Ferkelproduktion; Abferkelbetrieb 8,25 Umtriebe; bis 8 kg LM; 22 abgesetzte Ferkel; N-/P- reduziert",28.8,13.3,13.98]
[null,null,null,null,null,null,null,null,null,null,null,null,null,null,null,null,null,"arbeitsteilige Ferkelproduktion; Abferkelbetrieb 8,25 Umtriebe; bis 8 kg LM; 22 abgesetzte Ferkel; stark N-/P- reduziert",27.7,12.4,13.98]
[null,null,null,null,null,null,null,null,null,null,null,null,null,null,null,null,null,"arbeitsteilige Ferkelproduktion; Abferkelbetrieb 8,25 Umtriebe; bis 8 kg LM; 25 abgesetzte Ferkel;   Universalfutter",32.799999999999997,15.4,15.42]
[null,null,null,null,null,null,null,null,null,null,null,null,null,null,null,null,null,"arbeitsteilige Ferkelproduktion; Abferkelbetrieb 8,25 Umtriebe; bis 8 kg LM;                  25 abgesetzte Ferkel; N-/P- reduziert",29,13.5,13.98]
[null,null,null,null,null,null,null,null,null,null,null,null,null,null,null,null,null,"arbeitsteilige Ferkelproduktion; Abferkelbetrieb 8,25 Umtriebe; bis 8 kg LM;                  25 abgesetzte Ferkel; stark N-/P- reduziert",27.8,12.4,13.98]
[null,null,null,null,null,null,null,null,null,null,null,null,null,null,null,null,null,"arbeitsteilige Ferkelproduktion; Abferkelbetrieb 8,25 Umtriebe; bis 8 kg LM; 28 abgesetzte Ferkel;   Universalfutter",33.1,15.4,15.67]
[null,null,null,null,null,null,null,null,null,null,null,null,null,null,null,null,null,"arbeitsteilige Ferkelproduktion; Abferkelbetrieb 8,25 Umtriebe; bis 8 kg LM;                  28 abgesetzte Ferkel; N-/P- reduziert",29.1,13.5,14.22]
[null,null,null,null,null,null,null,null,null,null,null,null,null,null,null,null,null,"arbeitsteilige Ferkelproduktion; Abferkelbetrieb 8,25 Umtriebe; bis 8 kg LM;                  28 abgesetzte Ferkel; stark N-/P- reduziert",27.9,12.4,14.22]
[null,null,null,null,null,null,null,null,null,null,null,null,null,null,null,null,null,"arbeitsteilige Ferkelproduktion; kombinierter Deck- u. Wartebetrieb; 2,75 Umtriebe;  22 abgesetze Ferkel; Universlfutter",20.2,9.4,9.52]
[null,null,null,null,null,null,null,null,null,null,null,null,null,null,null,null,null,"arbeitsteilige Ferkelproduktion; kombinierter Deck- u. Wartebetrieb; 2,75 Umtriebe; 22 abgesetze Ferkel; N-/P- reduziert",17.8,8.3000000000000007,8.68]
[null,null,null,null,null,null,null,null,null,null,null,null,null,null,null,null,null,"arbeitsteilige Ferkelproduktion; kombinierter Deck- u. Wartebetrieb; 2,75 Umtriebe; 22 abgesetze Ferkel; stark N-/P- reduziert",17.100000000000001,7.6,8.68]
[null,null,null,null,null,null,null,null,null,null,null,null,null,null,null,null,null,"arbeitsteilige Ferkelproduktion; kombinierter Deck- u. Wartebetrieb; 2,75 Umtriebe; 25 abgesetze Ferkel; Universlfutter",20.3,9.4,9.52]
[null,null,null,null,null,null,null,null,null,null,null,null,null,null,null,null,null,"arbeitsteilige Ferkelproduktion; kombinierter Deck- u. Wartebetrieb; 2,75 Umtriebe;     25 abgesetze Ferkel; N-/P- reduziert",17.899999999999999,8.3000000000000007,8.68]
[null,null,null,null,null,null,null,null,null,null,null,null,null,null,null,null,null,"arbeitsteilige Ferkelproduktion; kombinierter Deck- u. Wartebetrieb; 2,75 Umtriebe;      25 abgesetze Ferkel; stark N-/P- reduziert",17.2,7.6,8.68]
[null,null,null,null,null,null,null,null,null,null,null,null,null,null,null,null,null,"arbeitsteilige Ferkelproduktion; kombinierter Deck- u. Wartebetrieb; 2,75 Umtriebe; 28 abgesetze Ferkel; Universlfutter",20.5,9.6,9.76]
[null,null,null,null,null,null,null,null,null,null,null,null,null,null,null,null,null,"arbeitsteilige Ferkelproduktion; kombinierter Deck- u. Wartebetrieb; 2,75 Umtriebe;     28 abgesetze Ferkel; N-/P- reduziert",18,8.5,8.8000000000000007]
[null,null,null,null,null,null,null,null,null,null,null,null,null,null,null,null,null,"arbeitsteilige Ferkelproduktion; kombinierter Deck- u. Wartebetrieb; 2,75 Umtriebe;     28 abgesetze Ferkel; stark N-/P- reduziert",17.3,7.6,8.8000000000000007]
[null,null,null,null,null,null,null,null,null,null,null,null,null,null,null,null,null,"arbeitsteilige Ferkelproduktion; kombi. Warte- u. Abferkelbetrieb; 3,0 Umtriebe; bis 8 kg LM; 22 abgesetzte Ferkel; Universalfutter",24,11.2,11.33]
[null,null,null,null,null,null,null,null,null,null,null,null,null,null,null,null,null,"arbeitsteilige Ferkelproduktion; kombinierter Warte- u. Abferkelbetrieb; 3,0 Umtriebe; bis 8 kg LM; 22 abgesetzte Ferkel; N-/P- reduziert",21.3,9.9,10.36]
[null,null,null,null,null,null,null,null,null,null,null,null,null,null,null,null,null,"arbeitsteilige Ferkelproduktion; kombinierter Warte- u. Abferkelbetrieb; 3,0 Umtriebe; bis 8 kg LM; 22 abgesetzte Ferkel; stark N-/P- reduziert",20.399999999999999,8.9,10.36]
[null,null,null,null,null,null,null,null,null,null,null,null,null,null,null,null,null,"arbeitsteilige Ferkelproduktion; kombinierter Warte- u. Abferkelbetrieb; 3,0 Umtriebe; bis 8 kg LM; 25 abgesetzte Ferkel;   Universalfutter",24.2,11.2,11.33]
[null,null,null,null,null,null,null,null,null,null,null,null,null,null,null,null,null,"arbeitsteilige Ferkelproduktion; kombinierter Warte- u. Abferkelbetrieb; 3,0 Umtriebe; bis 8 kg LM; 25 abgesetzte Ferkel; N-/P- reduziert",21.4,9.9,10.24]
[null,null,null,null,null,null,null,null,null,null,null,null,null,null,null,null,null,"arbeitsteilige Ferkelproduktion; kombinierter Warte- u. Abferkelbetrieb; 3,0 Umtriebe; bis 8 kg LM; 25 abgesetzte Ferkel; stark N-/P- reduziert",20.5,8.9,10.24]
[null,null,null,null,null,null,null,null,null,null,null,null,null,null,null,null,null,"arbeitsteilige Ferkelproduktion; kombinierter Warte- u. Abferkelbetrieb; 3,0 Umtriebe; bis 8 kg LM; 28 abgesetzte Ferkel;   Universalfutter",24.4,11.2,11.69]
[null,null,null,null,null,null,null,null,null,null,null,null,null,null,null,null,null,"arbeitsteilige Ferkelproduktion; kombinierter Warte- u. Abferkelbetrieb; 3,0 Umtriebe; bis 8 kg LM; 28 abgesetzte Ferkel; N-/P- reduziert",21.5,10.1,10.48]
[null,null,null,null,null,null,null,null,null,null,null,null,null,null,null,null,null,"arbeitsteilige Ferkelproduktion; kombinierter Warte- u. Abferkelbetrieb; 3,0 Umtriebe; bis 8 kg LM; 28 abgesetzte Ferkel; stark N-/P- reduziert",20.6,8.9,10.48]
[null,null,null,null,null,null,null,null,null,null,null,null,null,null,null,null,null,"Schweinemast, 700 g Tageszunahme, 28 bis 118 kg LM;   210 kg Zuwachs; 2,33 Durchgänge;  Universalfutter",11.1,4.8,5.5]
[null,null,null,null,null,null,null,null,null,null,null,null,null,null,null,null,null,"Schweinemast, 700 g Tageszunahme, 28 bis 118 kg LM;   210 kg Zuwachs; 2,33 Durchgänge; N-/P-reduziert",10.7,4.0999999999999996,5.3]
[null,null,null,null,null,null,null,null,null,null,null,null,null,null,null,null,null,"Schweinemast, 700 Tageszunahme,  28 bis 118 kg LM;   210 kg Zuwachs; 2,33 Durchgänge; stark N-/P- reduziert",9.6,3.7,5.2]
[null,null,null,null,null,null,null,null,null,null,null,null,null,null,null,null,null,"Schweinemast, 700 Tageszunahme,  28 bis 118 kg LM;   210 kg Zuwachs; 2,33 Durchgänge; sehr stark N-/P- reduziert","9,1",3.4174311926605503,4.7710843373493974]
[null,null,null,null,null,null,null,null,null,null,null,null,null,null,null,null,null,"Schweinemast, 750 g Tageszunahme, 28 bis 118 kg LM;   223 kg Zuwachs; 2,47 Durchgänge;  Universalfutter",11.4,4.8,5.7]
[null,null,null,null,null,null,null,null,null,null,null,null,null,null,null,null,null,"Schweinemast, 750 g Tageszunahme, 28 bis 118 kg LM;   223 kg Zuwachs; 2,47 Durchgänge; N-/P- reduziert",10.9,4.0999999999999996,5.5]
[null,null,null,null,null,null,null,null,null,null,null,null,null,null,null,null,null,"Schweinemast, 750 g Tageszunahme, 28 bis 118 kg LM;   223 kg Zuwachs; 2,47 Durchgänge; stark N-/P- reduziert",9.8000000000000007,3.9,5.3]
[null,null,null,null,null,null,null,null,null,null,null,null,null,null,null,null,null,"Schweinemast, 750 g Tageszunahme, 28 bis 118 kg LM;   223 kg Zuwachs; 2,47 Durchgänge; sehr stark N-/P- reduziert","9,3",3.5091743119266057,4.927710843373494]
[null,null,null,null,null,null,null,null,null,null,null,null,null,null,null,null,null,"Schweinemast, 850 g Tageszunahme, 28 bis 118 kg LM;   246 kg Zuwachs; 2,73 Durchgänge;  Universalfutter",12.2,5,5.9]
[null,null,null,null,null,null,null,null,null,null,null,null,null,null,null,null,null,"Schweinemast, 850 g Tageszunahme, 28 bis 118 kg LM;   246 kg Zuwachs; 2,73 Durchgänge; N-/P- reduziert",11.7,4.4000000000000004,5.8]
[null,null,null,null,null,null,null,null,null,null,null,null,null,null,null,null,null,"Schweinemast, 850 g Tageszunahme, 28 bis 118 kg LM;   246 kg Zuwachs; 2,73 Durchgänge; stark N-/P- reduziert",10.6,3.9,5.5]
[null,null,null,null,null,null,null,null,null,null,null,null,null,null,null,null,null,"Schweinemast, 850 g Tageszunahme, 28 bis 118 kg LM;   246 kg Zuwachs; 2,73 Durchgänge; sehr stark N-/P- reduziert","9,5",3.5550458715596331,5.168674698795181]
[null,null,null,null,null,null,null,null,null,null,null,null,null,null,null,null,null,"Schweinemast, 950 g Tageszunahme, 28 bis 118 kg LM;   267 kg Zuwachs; 2,97 Durchgänge,  Universalfutter",12.5,5,6.1]
[null,null,null,null,null,null,null,null,null,null,null,null,null,null,null,null,null,"Schweinemast, 950 g Tageszunahme, 28 bis 118 kg LM;   267 kg Zuwachs; 2,97 Durchgänge, N-/P- reduziert",12,4.4000000000000004,6]
[null,null,null,null,null,null,null,null,null,null,null,null,null,null,null,null,null,"Schweinemast, 950 g Tageszunahme; 28 bis 118 kg LM;   267 kg Zuwachs; 2,97 Durchgänge, stark N-/P- reduziert",10.8,3.9,5.8]
[null,null,null,null,null,null,null,null,null,null,null,null,null,null,null,null,null,"Schweinemast, 950 g Tageszunahme; 28 bis 118 kg LM;   267 kg Zuwachs; 2,97 Durchgänge, sehr stark N-/P- reduziert","9,7",3.5779816513761471,5.3734939759036147]
[null,null,null,null,null,null,null,null,null,null,null,null,null,null,null,null,null,"Schweinemast, 1050 g Tageszunahme; 28 bis 118 kg LM;   297 kg Zuwachs; 3,21 Durchgänge, stark N-/P- reduziert",10.7,3.8946999999999998,5.9165500000000009]
[null,null,null,null,null,null,null,null,null,null,null,null,null,null,null,null,null,"Schweinemast, 1050 g Tageszunahme; 28 bis 118 kg LM;   297 kg Zuwachs; 3,21 Durchgänge, sehr stark N-/P- reduziert",9.6,3.5281400000000001,5.4827500000000002]
[null,null,null,null,null,null,null,null,null,null,null,null,null,null,null,null,null,"Jungebermast, 850 g Tageszunahme, 28 bis 118 kg LM;   246 kg Zuwachs; Geschlechtsverhältnis wbl.:ml. 50:50; 2,73 Durchgänge;  Universalfutter",11.8,4.8,6.6]
[null,null,null,null,null,null,null,null,null,null,null,null,null,null,null,null,null,"Jungebermast, 850 g Tageszunahme, 28 bis 118 kg LM;   246 kg Zuwachs; Geschlechtsverhältnis wbl.:ml. 50:50; 2,73 Durchgänge; N-/P- reduziert",11.3,4.4000000000000004,6.4]
[null,null,null,null,null,null,null,null,null,null,null,null,null,null,null,null,null,"Jungebermast, 850 g Tageszunahme, 28 bis 118 kg LM;   246 kg Zuwachs; Geschlechtsverhältnis wbl.:ml. 50:50; 2,73 Durchgänge; stark N-/P- reduziert",9.69,3.57,4.5599999999999996]
[null,null,null,null,null,null,null,null,null,null,null,null,null,null,null,null,null,"Jungebermast, 850 g Tageszunahme, 28 bis 118 kg LM;   246 kg Zuwachs; Geschlechtsverhältnis wbl.:ml. 50:50; 2,73 Durchgänge; sehr stark N-/P- reduziert","8,7",3.2339449541284404,4.8674698795180724]
[null,null,null,null,null,null,null,null,null,null,null,null,null,null,null,null,null,"Jungebermast, 950 g Tageszunahme, 28 bis 118 kg LM;   267 kg Zuwachs; Geschlechtsverhältnis wbl.:ml. 50:50; 2,97 Durchgänge; stark N-/P- reduziert",10.3,3.7343299999999995,5.6153000000000004]
[null,null,null,null,null,null,null,null,null,null,null,null,null,null,null,null,null,"Jungebermast, 950 g Tageszunahme, 28 bis 118 kg LM;   267 kg Zuwachs; Geschlechtsverhältnis wbl.:ml. 50:50; 2,97 Durchgänge; sehr stark N-/P- reduziert",9.1999999999999993,3.4135899999999997,5.2056000000000004]
[null,null,null,null,null,null,null,null,null,null,null,null,null,null,null,null,null,"Jungebermast, 900 g Tageszunahme, 28 bis 118 kg LM; Geschlechtsverhältnis wbl.:ml. 0:100; 2,85 Durchgänge; Universalmast mit Vormast; 256,5 kg Zuwachs",11.3,4.5999999999999996,6.5]
[null,null,null,null,null,null,null,null,null,null,null,null,null,null,null,null,null,"Jungebermast;  900 g Tageszunahme, 28 bis 118 kg LM; Geschlechtsverhältnis wbl.:ml. 0:100; 2,85 Durchgänge;  2-Phasen-Mast mit Vormast; 256,5 kg Zuwachs",10.9,4.0999999999999996,6.4]
[null,null,null,null,null,null,null,null,null,null,null,null,null,null,null,null,null,"Jungebermast, 900 g Tageszunahme, 28 bis 118 kg LM; Geschlechtsverhältnis wbl.:ml. 0:100; 2,85 Durchgänge; N-/P- reduziert; 256,5 kg Zuwachs",10.9,4.1399999999999997,5.3]
[null,null,null,null,null,null,null,null,null,null,null,null,null,null,null,null,null,"Jungebermast, 900 g Tageszunahme, 28 bis 118 kg LM; Geschlechtsverhältnis wbl.:ml. 0:100; 2,85 Durchgänge; stark N-/P- reduziert; 256,5 kg Zuwachs",9.26,3.39,4.5]
[null,null,null,null,null,null,null,null,null,null,null,null,null,null,null,null,null,"Jungebermast, 900 g Tageszunahme, 28 bis 118 kg LM; Geschlechtsverhältnis wbl.:ml. 0:100; 2,85 Durchgänge; sehr stark N-/P- reduziert; 256,5 kg Zuwachs",8.3000000000000007,3.0241199999999999,4.7959000000000005]
[null,null,null,null,null,null,null,null,null,null,null,null,null,null,null,null,null,"Jungebermast, 1000 g Tageszunahme, 28 bis 118 kg LM; Geschlechtsverhältnis wbl.:ml. 0:100; 3,12 Durchgänge; stark N-/P- reduziert; 281 kg Zuwachs",9.9,3.57396,5.5791500000000003]
[null,null,null,null,null,null,null,null,null,null,null,null,null,null,null,null,null,"Jungebermast, 1000 g Tageszunahme, 28 bis 118 kg LM; Geschlechtsverhältnis wbl.:ml. 0:100; 3,12 Durchgänge; sehr stark N-/P- reduziert; 281 kg Zuwachs",8.8000000000000007,3.2073999999999998,5.1574000000000009]
[null,null,null,null,null,null,null,null,null,null,null,null,null,null,null,null,null,"Jungebermast, 800 g Tageszunahme, 28 bis 118 kg LM; Geschlechtsverhältnis wbl.:ml. 100:0; 2,6 Durchgänge; Universalmast mit Vormast; 234 kg Zuwachs",12.1,5,6.5]
[null,null,null,null,null,null,null,null,null,null,null,null,null,null,null,null,null,"Jungebermast, 800 g Tageszunahme, 28 bis 118 kg LM; Geschlechtsverhältnis wbl.:ml. 100:0; 2,6 Durchgänge;  2-Phasen- Mast mit Vormast; 234 kg Zuwachs",11.7,4.5,6.3]
[null,null,null,null,null,null,null,null,null,null,null,null,null,null,null,null,null,"Jungebermast, 800 g Tageszunahme, 28 bis 118 kg LM; Geschlechtsverhältnis wbl.:ml. 100:0; 234 kg Zuwachs; 2,6 Durchgänge; stark N-/P-reduziert",10,3.68851,5.4225000000000003]
[null,null,null,null,null,null,null,null,null,null,null,null,null,null,null,null,null,"Jungebermast, 800 g Tageszunahme, 28 bis 118 kg LM; Geschlechtsverhältnis wbl.:ml. 100:0; 234 kg Zuwachs; 2,6 Durchgänge;  sehr stark N-/P-reduziert",9,3.3677699999999997,4.9164000000000003]
[null,null,null,null,null,null,null,null,null,null,null,null,null,null,null,null,null,"Jungebermast, 900 g Tageszunahme, 28 bis 118 kg LM; Geschlechtsverhältnis wbl.:ml. 100:0; 258 kg Zuwachs; 2,87 Durchgänge; stark N-/P-reduziert",10.9,4.0092499999999998,5.7839999999999998]
[null,null,null,null,null,null,null,null,null,null,null,null,null,null,null,null,null,"Jungebermast, 900 g Tageszunahme, 28 bis 118 kg LM; Geschlechtsverhältnis wbl.:ml. 100:0; 258 kg Zuwachs; 2,87 Durchgänge; sehr stark N-/P-reduziert",9.8000000000000007,3.61978,5.350200000000001]

{"sheet":"Doku Geflügel","index":3,"n_rows":33,"n_cols":17,"rows_kept":33,"cut":false,"hidden":false,"merged":[[32,0,32,4],[32,5,32,16],[29,10,31,16],[0,10,0,12],[0,14,0,16],[28,10,28,11],[1,12,1,16],[0,6,1,6],[0,0,1,5],[2,2,28,2],[28,0,28,1],[29,0,31,4],[29,5,31,6]]}
["Weidetagebuch",null,null,null,null,null,"Weidetagebuch",null,null,null,"Ausgefüllt am:"]
[null,null,null,null,null,null,null,null,null,null,null,null,"Anfall auf der Weide"]
[null,null,null,"Weideverfahren","Größe (ha)","Anzahl Tiere","Tierart","N (kg/Jahr)","P2O5 (kg/Jahr)","K2O (kg/Jahr)","Tage","Stunden","N-Anfall (kg)","N-Anfall (kg/ha)","P2O5-Anfall (kg)","P2O5-Anfall (kg/ha)","K2O-Anfall (kg)"]
["Weidejahr:",2020,null,null,null,null,null,{"$f":"VLOOKUP(G4,'Daten Nährstoffanfall'!$C$180:$D$204,2,FALSE)","v":{"$error":"#N/A"}},{"$f":"VLOOKUP(G4,'Daten Nährstoffanfall'!$C$180:$E$204,3,FALSE)","v":{"$error":"#N/A"}},{"$f":"VLOOKUP(G4,'Daten Nährstoffanfall'!$C$180:$F$204,4,FALSE)","v":{"$error":"#N/A"}},null,null,{"$f":"IFERROR(((H4*(K4/365))*(L4/24)*F4)*0.6,\"\")","v":""},{"$f":"M4/E4","v":{"$error":"#VALUE!"}},{"$f":"IFERROR(((I4*(K4/365)*L4/24)*F4),\"\")","v":""},{"$f":"O4/E4","v":{"$error":"#VALUE!"}},{"$f":"IFERROR(((J4*(K4/365)*(L4/24)*F4)),\"\")","v":""}]
["Unternehmernummer:",null,null,null,null,null,null,{"$f":"VLOOKUP(G5,'Daten Nährstoffanfall'!$C$180:$D$204,2,FALSE)","v":{"$error":"#N/A"}},{"$f":"VLOOKUP(G5,'Daten Nährstoffanfall'!$C$180:$E$204,3,FALSE)","v":{"$error":"#N/A"}},{"$f":"VLOOKUP(G5,'Daten Nährstoffanfall'!$C$180:$F$204,4,FALSE)","v":{"$error":"#N/A"}},null,null,{"$f":"IFERROR(((H5*(K5/365))*(L5/24)*F5)*0.6,\"\")","v":""},{"$f":"M5/E5","v":{"$error":"#VALUE!"}},{"$f":"IFERROR(((I5*(K5/365)*L5/24)*F5),\"\")","v":""},{"$f":"O5/E5","v":{"$error":"#VALUE!"}},{"$f":"IFERROR(((J5*(K5/365)*(L5/24)*F5)),\"\")","v":""}]
["Name:",null,null,null,null,null,null,{"$f":"VLOOKUP(G6,'Daten Nährstoffanfall'!$C$180:$D$204,2,FALSE)","v":{"$error":"#N/A"}},{"$f":"VLOOKUP(G6,'Daten Nährstoffanfall'!$C$180:$E$204,3,FALSE)","v":{"$error":"#N/A"}},{"$f":"VLOOKUP(G6,'Daten Nährstoffanfall'!$C$180:$F$204,4,FALSE)","v":{"$error":"#N/A"}},null,null,"",{"$f":"M6/E6","v":{"$error":"#VALUE!"}},"",{"$error":"#VALUE!"},""]
["Vorname:",null,null,null,null,null,null,{"$f":"VLOOKUP(G7,'Daten Nährstoffanfall'!$C$180:$D$204,2,FALSE)","v":{"$error":"#N/A"}},{"$f":"VLOOKUP(G7,'Daten Nährstoffanfall'!$C$180:$E$204,3,FALSE)","v":{"$error":"#N/A"}},{"$f":"VLOOKUP(G7,'Daten Nährstoffanfall'!$C$180:$F$204,4,FALSE)","v":{"$error":"#N/A"}},null,null,"",{"$f":"M7/E7","v":{"$error":"#VALUE!"}},"",{"$error":"#VALUE!"},""]
["Straße: ",null,null,null,null,null,null,{"$f":"VLOOKUP(G8,'Daten Nährstoffanfall'!$C$180:$D$204,2,FALSE)","v":{"$error":"#N/A"}},{"$f":"VLOOKUP(G8,'Daten Nährstoffanfall'!$C$180:$E$204,3,FALSE)","v":{"$error":"#N/A"}},{"$f":"VLOOKUP(G8,'Daten Nährstoffanfall'!$C$180:$F$204,4,FALSE)","v":{"$error":"#N/A"}},null,null,"",{"$error":"#VALUE!"},"",{"$f":"O8/E8","v":{"$error":"#VALUE!"}},""]
["PLZ:",null,null,null,null,null,null,{"$f":"VLOOKUP(G9,'Daten Nährstoffanfall'!$C$180:$D$204,2,FALSE)","v":{"$error":"#N/A"}},{"$f":"VLOOKUP(G9,'Daten Nährstoffanfall'!$C$180:$E$204,3,FALSE)","v":{"$error":"#N/A"}},{"$f":"VLOOKUP(G9,'Daten Nährstoffanfall'!$C$180:$F$204,4,FALSE)","v":{"$error":"#N/A"}},null,null,"",{"$error":"#VALUE!"},"",{"$error":"#VALUE!"},""]
["Ort:",null,null,null,null,null,null,{"$f":"VLOOKUP(G10,'Daten Nährstoffanfall'!$C$180:$D$204,2,FALSE)","v":{"$error":"#N/A"}},{"$f":"VLOOKUP(G10,'Daten Nährstoffanfall'!$C$180:$E$204,3,FALSE)","v":{"$error":"#N/A"}},{"$f":"VLOOKUP(G10,'Daten Nährstoffanfall'!$C$180:$F$204,4,FALSE)","v":{"$error":"#N/A"}},null,null,"",{"$error":"#VALUE!"},"",{"$error":"#VALUE!"},""]
["Betriebsfläche in ha:",null,null,null,null,null,null,{"$f":"VLOOKUP(G11,'Daten Nährstoffanfall'!$C$180:$D$204,2,FALSE)","v":{"$error":"#N/A"}},{"$f":"VLOOKUP(G11,'Daten Nährstoffanfall'!$C$180:$E$204,3,FALSE)","v":{"$error":"#N/A"}},{"$f":"VLOOKUP(G11,'Daten Nährstoffanfall'!$C$180:$F$204,4,FALSE)","v":{"$error":"#N/A"}},null,null,"",{"$error":"#VALUE!"},"",{"$error":"#VALUE!"},""]
["Dauergrünland in ha:",null,null,null,null,null,null,{"$f":"VLOOKUP(G12,'Daten Nährstoffanfall'!$C$180:$D$204,2,FALSE)","v":{"$error":"#N/A"}},{"$f":"VLOOKUP(G12,'Daten Nährstoffanfall'!$C$180:$E$204,3,FALSE)","v":{"$error":"#N/A"}},{"$f":"VLOOKUP(G12,'Daten Nährstoffanfall'!$C$180:$F$204,4,FALSE)","v":{"$error":"#N/A"}},null,null,"",{"$error":"#VALUE!"},"",{"$error":"#VALUE!"},""]
[null,null,null,null,null,null,null,{"$f":"VLOOKUP(G13,'Daten Nährstoffanfall'!$C$180:$D$204,2,FALSE)","v":{"$error":"#N/A"}},{"$f":"VLOOKUP(G13,'Daten Nährstoffanfall'!$C$180:$E$204,3,FALSE)","v":{"$error":"#N/A"}},{"$f":"VLOOKUP(G13,'Daten Nährstoffanfall'!$C$180:$F$204,4,FALSE)","v":{"$error":"#N/A"}},null,null,"",{"$error":"#VALUE!"},"",{"$error":"#VALUE!"},""]
[null,null,null,null,null,null,null,{"$f":"VLOOKUP(G14,'Daten Nährstoffanfall'!$C$180:$D$204,2,FALSE)","v":{"$error":"#N/A"}},{"$f":"VLOOKUP(G14,'Daten Nährstoffanfall'!$C$180:$E$204,3,FALSE)","v":{"$error":"#N/A"}},{"$f":"VLOOKUP(G14,'Daten Nährstoffanfall'!$C$180:$F$204,4,FALSE)","v":{"$error":"#N/A"}},null,null,"",{"$error":"#VALUE!"},"",{"$error":"#VALUE!"},""]
[null,null,null,null,null,null,null,{"$f":"VLOOKUP(G15,'Daten Nährstoffanfall'!$C$180:$D$204,2,FALSE)","v":{"$error":"#N/A"}},{"$f":"VLOOKUP(G15,'Daten Nährstoffanfall'!$C$180:$E$204,3,FALSE)","v":{"$error":"#N/A"}},{"$f":"VLOOKUP(G15,'Daten Nährstoffanfall'!$C$180:$F$204,4,FALSE)","v":{"$error":"#N/A"}},null,null,"",{"$error":"#VALUE!"},"",{"$error":"#VALUE!"},""]
[null,null,null,null,null,null,null,{"$f":"VLOOKUP(G16,'Daten Nährstoffanfall'!$C$180:$D$204,2,FALSE)","v":{"$error":"#N/A"}},{"$f":"VLOOKUP(G16,'Daten Nährstoffanfall'!$C$180:$E$204,3,FALSE)","v":{"$error":"#N/A"}},{"$f":"VLOOKUP(G16,'Daten Nährstoffanfall'!$C$180:$F$204,4,FALSE)","v":{"$error":"#N/A"}},null,null,"",{"$error":"#VALUE!"},"",{"$error":"#VALUE!"},""]
[null,null,null,null,null,null,null,{"$f":"VLOOKUP(G17,'Daten Nährstoffanfall'!$C$180:$D$204,2,FALSE)","v":{"$error":"#N/A"}},{"$f":"VLOOKUP(G17,'Daten Nährstoffanfall'!$C$180:$E$204,3,FALSE)","v":{"$error":"#N/A"}},{"$f":"VLOOKUP(G17,'Daten Nährstoffanfall'!$C$180:$F$204,4,FALSE)","v":{"$error":"#N/A"}},null,null,"",{"$error":"#VALUE!"},"",{"$error":"#VALUE!"},""]
[null,null,null,null,null,null,null,{"$f":"VLOOKUP(G18,'Daten Nährstoffanfall'!$C$180:$D$204,2,FALSE)","v":{"$error":"#N/A"}},{"$f":"VLOOKUP(G18,'Daten Nährstoffanfall'!$C$180:$E$204,3,FALSE)","v":{"$error":"#N/A"}},{"$f":"VLOOKUP(G18,'Daten Nährstoffanfall'!$C$180:$F$204,4,FALSE)","v":{"$error":"#N/A"}},null,null,"",{"$error":"#VALUE!"},"",{"$error":"#VALUE!"},""]
[null,null,null,null,null,null,null,{"$f":"VLOOKUP(G19,'Daten Nährstoffanfall'!$C$180:$D$204,2,FALSE)","v":{"$error":"#N/A"}},{"$f":"VLOOKUP(G19,'Daten Nährstoffanfall'!$C$180:$E$204,3,FALSE)","v":{"$error":"#N/A"}},{"$f":"VLOOKUP(G19,'Daten Nährstoffanfall'!$C$180:$F$204,4,FALSE)","v":{"$error":"#N/A"}},null,null,"",{"$error":"#VALUE!"},"",{"$error":"#VALUE!"},""]
[null,null,null,null,null,null,null,{"$f":"VLOOKUP(G20,'Daten Nährstoffanfall'!$C$180:$D$204,2,FALSE)","v":{"$error":"#N/A"}},{"$f":"VLOOKUP(G20,'Daten Nährstoffanfall'!$C$180:$E$204,3,FALSE)","v":{"$error":"#N/A"}},{"$f":"VLOOKUP(G20,'Daten Nährstoffanfall'!$C$180:$F$204,4,FALSE)","v":{"$error":"#N/A"}},null,null,"",{"$error":"#VALUE!"},"",{"$error":"#VALUE!"},""]
[null,null,null,null,null,null,null,{"$f":"VLOOKUP(G21,'Daten Nährstoffanfall'!$C$180:$D$204,2,FALSE)","v":{"$error":"#N/A"}},{"$f":"VLOOKUP(G21,'Daten Nährstoffanfall'!$C$180:$E$204,3,FALSE)","v":{"$error":"#N/A"}},{"$f":"VLOOKUP(G21,'Daten Nährstoffanfall'!$C$180:$F$204,4,FALSE)","v":{"$error":"#N/A"}},null,null,"",{"$error":"#VALUE!"},"",{"$error":"#VALUE!"},""]
[null,null,null,null,null,null,null,{"$f":"VLOOKUP(G22,'Daten Nährstoffanfall'!$C$180:$D$204,2,FALSE)","v":{"$error":"#N/A"}},{"$f":"VLOOKUP(G22,'Daten Nährstoffanfall'!$C$180:$E$204,3,FALSE)","v":{"$error":"#N/A"}},{"$f":"VLOOKUP(G22,'Daten Nährstoffanfall'!$C$180:$F$204,4,FALSE)","v":{"$error":"#N/A"}},null,null,"",{"$error":"#VALUE!"},"",{"$error":"#VALUE!"},""]
[null,null,null,null,null,null,null,{"$f":"VLOOKUP(G23,'Daten Nährstoffanfall'!$C$180:$D$204,2,FALSE)","v":{"$error":"#N/A"}},{"$f":"VLOOKUP(G23,'Daten Nährstoffanfall'!$C$180:$E$204,3,FALSE)","v":{"$error":"#N/A"}},{"$f":"VLOOKUP(G23,'Daten Nährstoffanfall'!$C$180:$F$204,4,FALSE)","v":{"$error":"#N/A"}},null,null,"",{"$error":"#VALUE!"},"",{"$error":"#VALUE!"},""]
[null,null,null,null,null,null,null,{"$f":"VLOOKUP(G24,'Daten Nährstoffanfall'!$C$180:$D$204,2,FALSE)","v":{"$error":"#N/A"}},{"$f":"VLOOKUP(G24,'Daten Nährstoffanfall'!$C$180:$E$204,3,FALSE)","v":{"$error":"#N/A"}},{"$f":"VLOOKUP(G24,'Daten Nährstoffanfall'!$C$180:$F$204,4,FALSE)","v":{"$error":"#N/A"}},null,null,"",{"$error":"#VALUE!"},"",{"$error":"#VALUE!"},""]
[null,null,null,null,null,null,null,{"$f":"VLOOKUP(G25,'Daten Nährstoffanfall'!$C$180:$D$204,2,FALSE)","v":{"$error":"#N/A"}},{"$f":"VLOOKUP(G25,'Daten Nährstoffanfall'!$C$180:$E$204,3,FALSE)","v":{"$error":"#N/A"}},{"$f":"VLOOKUP(G25,'Daten Nährstoffanfall'!$C$180:$F$204,4,FALSE)","v":{"$error":"#N/A"}},null,null,"",{"$error":"#VALUE!"},"",{"$error":"#VALUE!"},""]
[null,null,null,null,null,null,null,{"$f":"VLOOKUP(G26,'Daten Nährstoffanfall'!$C$180:$D$204,2,FALSE)","v":{"$error":"#N/A"}},{"$f":"VLOOKUP(G26,'Daten Nährstoffanfall'!$C$180:$E$204,3,FALSE)","v":{"$error":"#N/A"}},{"$f":"VLOOKUP(G26,'Daten Nährstoffanfall'!$C$180:$F$204,4,FALSE)","v":{"$error":"#N/A"}},null,null,"",{"$error":"#VALUE!"},"",{"$error":"#VALUE!"},""]
[null,null,null,null,null,null,null,{"$f":"VLOOKUP(G27,'Daten Nährstoffanfall'!$C$180:$D$204,2,FALSE)","v":{"$error":"#N/A"}},{"$f":"VLOOKUP(G27,'Daten Nährstoffanfall'!$C$180:$E$204,3,FALSE)","v":{"$error":"#N/A"}},{"$f":"VLOOKUP(G27,'Daten Nährstoffanfall'!$C$180:$F$204,4,FALSE)","v":{"$error":"#N/A"}},null,null,"",{"$error":"#VALUE!"},"",{"$error":"#VALUE!"},""]
[null,null,null,null,null,null,null,{"$f":"VLOOKUP(G28,'Daten Nährstoffanfall'!$C$180:$D$204,2,FALSE)","v":{"$error":"#N/A"}},{"$f":"VLOOKUP(G28,'Daten Nährstoffanfall'!$C$180:$E$204,3,FALSE)","v":{"$error":"#N/A"}},{"$f":"VLOOKUP(G28,'Daten Nährstoffanfall'!$C$180:$F$204,4,FALSE)","v":{"$error":"#N/A"}},null,null,"",{"$error":"#VALUE!"},"",{"$error":"#VALUE!"},""]
["Am Ende der Weideperiode auszufüllen!",null,null,null,null,null,null,null,null,null,"Summe:",null,{"$f":"SUM(M4:M28)","v":0},{"$error":"#DIV/0!"},{"$f":"SUM(O4:O28)","v":0},{"$error":"#DIV/0!"},{"$f":"SUM(Q4:Q28)","v":0}]
["Marvin Serve - LK NRW",null,null,null,null,null,null,null,null,null,"Marvin Serve - LK NRW"]
[]
[]
["Seite 1 - Diese Angaben sind freiwillig und dienen der Übersichtlichkeit bei einer eventuellen Kontrolle",null,null,null,null,"Seite 2 - Pflichtangaben zur Dokumentation der Weidehaltung und für die Anlage 5 der Düngeverordnung"]

{"sheet":"Daten Nährstoffanfall","index":4,"n_rows":222,"n_cols":6,"rows_kept":222,"cut":false,"hidden":false,"merged":[[0,3,0,5]]}
[null,null,null,"Nährstoffanfall (kg)"]
[null,null,null,"N","P2O5","K2O"]
[null,10,"Jungrinderaufzucht, Grünland; konventionell;  0 bis 6 Monate",28,9.16,34.799999999999997]
[null,11,"Jungrinderaufzucht, Grünland; konventionell; 7 bis 12 Monate",47,13.74,57.6]
[null,12,"Jungrinderaufzucht, Grünland; konventionell; 13 bis 24 Monate",72,20.61,93.6]
[null,13,"Jungrinderaufzucht, Grünland; konventionell; über 24 Monate",84,22.9,99.6]
[null,14,"Jungrinderaufzucht, Grünland; extensiv;  0 bis 6 Monate; Futterbasis Naturschutzgrünland",28,9.16,30]
[null,15,"Jungrinderaufzucht, Grünland; extensiv; 7 bis 12 Monate; Futterbasis Naturschutzgrünland",44,13.74,48]
[null,16,"Jungrinderaufzucht, Grünland; extensiv; 13 bis 24 Monate; Futterbasis Naturschutzgrünland",67,20.61,73.2]
[null,17,"Jungrinderaufzucht, Grünland; extensiv; über 24 Monate; Futterbasis Naturschutzgrünland",77,22.9,84]
[null,18,"Jungrinderaufzucht,  Ackerfutter; mit Weide; 0 bis 6 Monate",24,8.02,30]
[null,19,"Jungrinderaufzucht,  Ackerfutter; mit Weide; 7 bis 12 Monate",39,11.45,48]
[null,20,"Jungrinderaufzucht,  Ackerfutter; mit Weide; 13 bis 24 Monate",61,20.61,73.2]
[null,21,"Jungrinderaufzucht,  Ackerfutter; mit Weide; über 24 Monate",70,22.9,84]
[null,30,"Bullenmast,  bis 675 kg (0 bis 6 Monate); ab Kalb 45 kg",18,6.87,14.4]
[null,31,"Bullenmast,  bis 675 kg (7 bis 12 Monate); ab Kalb 45 kg",36,16.03,30]
[null,32,"Bullenmast,  bis 675 kg (13 bis 19 Monate); ab Kalb 45 kg",53,20.61,44.4]
[null,33,"Bullenmast, bis 750 kg (0 bis 6 Monate); ab Kalb 45 kg",19,6.87,14.4]
[null,36,"Bullenmast, bis 750 kg (7 bis 12 Monate) ",39,13.74,32.4]
[null,37,"Bullenmast, bis 750 kg (13 bis 19 Monate)",56,20.61,45.6]
[null,40,"Kälberaufzucht (Alter bis 16 Wochen; 90 kg Zuwachs je Kalb; \n3 Durchgänge pro Jahr)",16.600000000000001,6.4,15.3]
[null,41,"Jungrinderaufzucht, Grünland; konventionell  (Alter 0 bis 27 Monate;        605 kg Zuwachs)",57,16.399999999999999,70.66]
[null,42,"Jungrinderaufzucht, Grünland; extensiv (Alter 0 bis 27 Monate; 605 kg Zuwachs; Futterbasis Naturschutzgrünland)",54,16,60]
[null,43,"Jungrinderaufzucht,  Ackerfutter; mit Weide  (Alter 0 bis 27 Monate;         605 kg Zuwachs)",48,15.5,59.11]
[null,50,"Milchkuh, Grünland mit Weide; 6000 kg ECM",114,36,134]
[null,51,"Milchkuh, Grünland mit Weide; 8000 kg ECM",129,43,142]
[null,52,"Milchkuh, Grünland mit Weide; 10000 kg ECM",143,47,150]
[null,56,"Milchkuh, Ackerfutter mit Weide; 6000 kg ECM",103,37,109]
[null,57,"Milchkuh, Ackerfutter mit Weide; 8000 kg ECM",117,42,120]
[null,58,"Milchkuh, Ackerfutter mit Weide; 10000 kg ECM",134,47,131]
[null,59,"Milchkuh, Ackerfutter mit Weide; 12000 kg ECM",153,52,140]
[null,64,"Milchkuh, leichte Rasse 450 kg LM, Ackerfutter; 5000 kg ECM ",76,27,84]
[null,65,"Milchkuh, leichte Rasse 450 kg LM, Ackerfutter; 7000 kg ECM",91,33,96]
[null,66,"Milchkuh, leichte Rasse 450 kg LM, Ackerfutter; 9000 kg ECM",111,42,108]
[null,70,"Bullenmast,  bis 675 kg (19 Monate); ab Kalb 45 kg",36.6,14.2,30.32]
[null,71,"Bullenmast, bis 750 kg (19 Monate); ab Kalb 45 kg",39.1,14.3,31.58]
[null,72,"Bullenmast, bis 750 kg (17,6 Monate); ab 80 kg",40.700000000000003,14.7,33.4]
[null,73,"Bullenmast, bis 750 kg (13,2 Monate); ab 210 kg",41.3,14.8,40]
[null,74,"Fresserproduktion,  80 bis 210 kg LM; 2,7 Umtriebe; Standard",15.7,5.4,15]
[null,75,"Fresserproduktion,  80 bis 210 kg LM; 2,7 Umtriebe pro Jahr; N-/P-reduziert",14.6,4.5,15]
[null,80,"Mutterkuh, 500 kg LM; 0,9 Kalb pro Kuh und Jahr mit 200 kg Absetzgewicht, 6 Monate Säugezeit",88,26,104]
[null,81,"Mutterkuh, 700 kg LM; 0,9 Kalb pro Kuh und Jahr mit 230 kg Absetzgewicht,  6 Monate Säugezeit",105,31,129]
[null,82,"Mutterkuh, 700 kg LM; 0,9 Kalb pro Kuh und Jahr mit 340 kg Absetzgewicht, 9 Monate Säugezeit",114,33,142]
[null,83,"Rosa-Kalbfleisch-Erzeugung; von 50 bis 350 kg LM;  1,3 Umtriebe ",31,12.7,23]
[null,84,"Kälbermast, MAT; von 50 bis 250 kg LM;  2,1 Umtriebe ",13,6.5,13]
[null,85,"Kälbermast; MAT+Kraftfutter; 50 bis 260 kg JM;  1,9 Umtriebe ",15.9,7.3,14]
[null,86,"Zuchtbulle",61,20.6,84.3]
[]
[]
[null,100,"Sauenhaltung, Ferkelaufzucht bis 8 kg LM; 22 aufgezogene Ferkel; 216 kg Zuwachs je Platz/Jahr;  Universalfutter",27.1,12.6,12.8]
[null,101,"Sauenhaltung, Ferkelaufzucht bis 8 kg LM; 22 aufgezogene Ferkel; 216 kg Zuwachs je Platz/Jahr; N-/P-reduziert",24,11,11.6]
[null,102,"Sauenhaltung, Ferkelaufzucht bis 8 kg LM; 22 aufgezogene Ferkel; 216 kg Zuwachs je Platz/Jahr; stark N-/P- reduziert",23,10.3,11.6]
[null,222,"Sauenhaltung, Ferkelaufzucht bis 8 kg LM; 22 aufgezogene Ferkel; 216 kg Zuwachs je Platz/Jahr; sehr stark N-/P- reduziert",22,9.6559633027522942,10.602409638554219]
[null,103,"Sauenhaltung, Ferkelaufzucht bis 8 kg LM; 25 aufgezogene Ferkel; 239 kg Zuwachs je Platz/Jahr;  Universalfutter",27.3,12.6,12.8]
[null,104,"Sauenhaltung, Ferkelaufzucht bis 8 kg LM; 25 aufgezogene Ferkel; 239 kg Zuwachs je Platz/Jahr; N-/P-reduziert",24.1,11.2,11.6]
[null,105,"Sauenhaltung, Ferkelaufzucht bis 8 kg LM; 25 aufgezogene Ferkel; 239 kg Zuwachs je Platz/Jahr; stark N-/P-reduziert",23.1,10.3,11.6]
[null,223,"Sauenhaltung, Ferkelaufzucht bis 8 kg LM; 25 aufgezogene Ferkel; 239 kg Zuwachs je Platz/Jahr; sehr stark N-/P-reduziert",22.1,9.6788990825688064,10.843373493975903]
[null,106,"Sauenhaltung, Ferkelaufzucht bis 8 kg LM; 28 aufgezogene Ferkel; 264 kg Zuwachs je Platz/Jahr,  Universalfutter",27.5,12.8,13.1]
[null,107,"Sauenhaltung, Ferkelaufzucht bis 8 kg LM; 28 aufgezogene Ferkel; 264 kg Zuwachs je Platz/Jahr, N-/P-reduziert",24.2,11.2,11.8]
[null,108,"Sauenhaltung, Ferkelaufzucht bis 8 kg LM; 28 aufgezogene Ferkel 264 kg Zuwachs Platz/Jahr; stark N-P/-reduziert",23.2,10.3,11.8]
[null,224,"Sauenhaltung, Ferkelaufzucht bis 8 kg LM; 28 aufgezogene Ferkel 264 kg Zuwachs Platz/Jahr; sehr stark N-P/-reduziert","22,3",9.7247706422018361,11.08433734939759]
[null,241,"Sauenhaltung, Ferkelaufzucht bis 8 kg LM; 31 aufgezogene Ferkel 288 kg Zuwachs Platz/Jahr; stark N-P/-reduziert",23.3,10.3095,12.05]
[null,242,"Sauenhaltung, Ferkelaufzucht bis 8 kg LM; 31 aufgezogene Ferkel 288 kg Zuwachs Platz/Jahr; sehr stark N-P/-reduziert",22.3,9.7367499999999989,11.327000000000002]
[null,246,"Sauenhaltung, Ferkelaufzucht bis 8 kg LM; 34 aufgezogene Ferkel 312 kg Zuwachs Platz/Jahr; stark N-P/-reduziert",23.4,10.355319999999999,12.291]
[null,247,"Sauenhaltung, Ferkelaufzucht bis 8 kg LM; 34 aufgezogene Ferkel 312 kg Zuwachs Platz/Jahr; sehr stark N-P/-reduziert",22.4,9.7596599999999984,11.568]
[null,109,"Sauenhaltung, Ferkelaufzucht bis 28 kg LM; 22 aufgezogene Ferkel; 656 kg Zuwachs je Platz/Jahr;  Universalfutter",39.200000000000003,17.2,19.899999999999999]
[null,110,"Sauenhaltung, Ferkelzaufzucht bis 28 kg LM; 22 aufgezogene Ferkel; 656 kg Zuwachs je Platz/Jahr; N-/P- reduziert",35.1,15.3,18.3]
[null,111,"Sauenhaltung, Ferkelaufzucht bis 28 kg LM; 22 aufgezogene Ferkel; 656 kg Zuwachs je Platz/Jahr; stark N-/P- reduziert",33.5,14,18.3]
[null,225,"Sauenhaltung, Ferkelaufzucht bis 28 kg LM; 22 aufgezogene Ferkel; 656 kg Zuwachs je Platz/Jahr; Sehr stark N-/P- reduziert","31,9",13.165137614678899,17.46987951807229]
[null,112,"Sauenhaltung, Ferkelaufzucht bis 28 kg LM; 25 aufgezogene Ferkel; 711 kg Zuwachs je Platz/Jahr; Universalfutter",41.1,17.899999999999999,21.1]
[null,113,"Sauenhaltung, Ferkelaufzucht bis 28 kg LM; 25 aufgezogene Ferkel; 711 kg Zuwachs je Platz/Jahr; N-/P- reduziert",36.799999999999997,16,19.5]
[null,114,"Sauenhaltung; Ferkelaufzucht bis 28 kg LM; 25 aufgezogene Ferkel; 711 kg Zuwachs je Platz/Jahr; stark N-/P- reduziert",35,14.7,19.5]
[null,226,"Sauenhaltung; Ferkelaufzucht bis 28 kg LM; 25 aufgezogene Ferkel; 711 kg Zuwachs je Platz/Jahr; sehr stark N-/P- reduziert","33,4",13.669724770642201,18.192771084337348]
[null,115,"Sauenhaltung, Ferkelaufzucht bis 28 kg LM; 28 aufgezogene Ferkel; 824 kg Zuwachs je Platz/Jahr; Universalfutter",42.9,18.600000000000001,21.3]
[null,116,"Sauenhaltung, Ferkelaufzucht bis 28 kg LM; 28 aufgezogene Ferkel; 824 kg Zuwachs je Platz/Jahr; N-/P_ reduziert",38.4,16.7,20.7]
[null,117,"Sauenhaltung, Ferkelaufzucht bis 28 kg LM; 28 aufgezogene Ferkel; 824 kg Zuwachs je Platz/Jahr; stark N-/P- reduziert",36.6,15.1,20.7]
[null,227,"Sauenhaltung, Ferkelaufzucht bis 28 kg LM; 28 aufgezogene Ferkel; 824 kg Zuwachs je Platz/Jahr; sehr stark N-/P- reduziert","34,8",14.403669724770642,19.397590361445786]
[null,248,"Sauenhaltung, Ferkelaufzucht bis 28 kg LM; 31 aufgezogene Ferkel; 908 kg Zuwachs je Platz/Jahr; stark N-/P- reduziert",38.1,15.762079999999999,21.931000000000001]
[null,249,"Sauenhaltung, Ferkelaufzucht bis 28 kg LM; 31 aufgezogene Ferkel; 908 kg Zuwachs je Platz/Jahr; sehr stark N-/P- reduziert",36.200000000000003,14.6624,20.484999999999999]
[null,250,"Sauenhaltung, Ferkelaufzucht bis 28 kg LM; 34 aufgezogene Ferkel; 992 kg Zuwachs je Platz/Jahr; stark N-/P- reduziert",39.700000000000003,16.33483,23.135999999999999]
[null,251,"Sauenhaltung, Ferkelaufzucht bis 28 kg LM; 34 aufgezogene Ferkel; 992 kg Zuwachs je Platz/Jahr; sehr stark N-/P- reduziert",37.700000000000003,15.16642,21.569499999999998]
[null,130,"spezialisierte Ferkelaufzucht,  8 bis 28 kg LM;  140 kg Zuwachs je Platz/Jahr; 7 Durchgänge; Ø-450g Tageszunahme, Universalfutter",3.8,1.4,2.2999999999999998]
[null,131,"spezialisierte Ferkelaufzucht,  ab 8 bzw. 28 kg LM;  140 kg Zuwachs je Platz/Jahr; 7 Durchgänge; Ø-450g Tageszunahme;  N-/P- reduziert",3.6,1.4,2.2000000000000002]
[null,132,"spezialisierte Ferkelaufzucht,  ab 8 bzw. 28 kg LM;  140 kg Zuwachs je Jahr/Platz; 7 Durchgänge; Ø-450 g Tageszunahme; stark N-/P- reduziert",3.36,1.2371400000000001,2.169]
[null,228,"spezialisierte Ferkelaufzucht,  ab 8 bzw. 28 kg LM;  140 kg Zuwachs je Jahr/Platz; 7 Durchgänge; Ø-450 g Tageszunahme; sehr stark N-/P- reduziert",3.15,1.12259,2.169]
[null,133,"spezialisierte Ferkelaufzucht,  8 bis 28 kg LKM;  160 kg Zuwachs je Jahr/Platz; 8 Durchgänge; Ø-500 g Tageszunahme; Universalfutter",4.2,1.6,2.5]
[null,134,"spezialisierte Ferkelaufzucht,  8 bis 28 kg LKM;  160 kg Zuwachs je Jahr/Platz; 8 Durchgänge; Ø-500 g Tageszunahme; N-/P- reduziert",3.8,1.4,2.4]
[null,135,"spezialisierte Ferkelaufzucht,  8 bis 28 kg LKM;  160 kg Zuwachs je Jahr/Platz; 8 Durchgänge; Ø-500 g Tageszunahme; stark N-/P- reduziert",3.6,1.3058699999999999,2.41]
[null,229,"spezialisierte Ferkelaufzucht,  8 bis 28 kg LKM;  160 kg Zuwachs je Jahr/Platz; 8 Durchgänge; Ø-500 g Tageszunahme; sehr stark N-/P- reduziert",3.44,1.1913199999999999,2.41]
[null,140,"Jungsauenaufzucht,  28 bis 115 kg LM;  180 kg Zuwachs je Platz/Jahr; 2,1 Durchgänge;  Universalfutter",10.8,5.5,4.9000000000000004]
[null,141,"Jungsauenaufzucht,  28 bis 115 kg LM;  180 kg Zuwachs je Platz/Jahr; 2,1 Durchgänge; N-/P-reduziert",9,4.5999999999999996,4.4000000000000004]
[null,230,"Jungsauenaufzucht,  28 bis 115 kg LM;  / 73 kg Zuwachs/Tier180 kg Zuwachs je Platz/Jahr; 2,47 Durchgänge;  Universalfutter",9.9,5.022935779816514,4.5662650602409638]
[null,231,"Jungsauenaufzucht,  28 bis 115 kg LM;  73 kg Zuwachs /Tier180 kg Zuwachs je Platz/Jahr; 2,47 Durchgänge; N-/P-reduziert",8.06,4.2201834862385326,4.1445783132530121]
[null,142,"Jungsaueneingliederung, 95 bis 135 kg LM;  240 Zuwachs je Platz/Jahr; 6 Durchgänge;  Universalfutter",15.4,8.5,7.5]
[null,143,"Jungsaueneingliederung,  95 bis 135 kg LM;  240 Zuwachs je Platz/Jahr; 6 Durchgänge; N-/P-reduziert",13.3,7.5,6.4]
[null,144,"Eberhaltung, 60 kg Zuwachs je Platz/Jahr ",22.1,9.6,8.8000000000000007]
[null,150,"arbeitsteilige Ferkelproduktion; Deckbetrieb 6,25 Umtriebe; 22 aufgezogene Ferkel; Universalfutter",22.4,9.4,9.64]
[null,151,"arbeitsteilige Ferkelproduktion; Deckbetrieb 6,25 Umtriebe; 22 aufgezogene Ferkel; N-/P- reduziert",18.100000000000001,8.5,8.8000000000000007]
[null,152,"arbeitsteilige Ferkelproduktion; Deckbetrieb 6,25 Umtriebe; 22 aufgezogene Ferkel; stark N-/P- reduziert",17.399999999999999,7.8,8.8000000000000007]
[null,153,"arbeitsteilige Ferkelproduktion; Deckbetrieb 6,25 Umtriebe; 25 aufgezogene Ferkel; Universalfutter",20.6,9.6,9.64]
[null,154,"arbeitsteilige Ferkelproduktion; Deckbetrieb 6,25 Umtriebe; 25 aufgezogene Ferkel;     N-/P- reduziert",18,8.5,8.8000000000000007]
[null,155,"arbeitsteilige Ferkelproduktion; Deckbetrieb 6,25 Umtriebe; 25 aufgezogene Ferkel; stark N-/P- reduziert",17.5,7.8,8.8000000000000007]
[null,156,"arbeitsteilige Ferkelproduktion; Deckbetrieb 6,25 Umtriebe; 28 aufgezogene Ferkel; Universalfutter",20.8,9.6,9.8800000000000008]
[null,157,"arbeitsteilige Ferkelproduktion; Deckbetrieb 6,25 Umtriebe; 28 aufgezogene Ferkel;     N-/P- reduziert",18.3,8.5,8.92]
[null,158,"arbeitsteilige Ferkelproduktion; Deckbetrieb 6,25 Umtriebe; 28 aufgezogene Ferkel; stark N-/P- reduziert",17.5,7.8,8.92]
[null,160,"arbeitsteilige Ferkelproduktion; Wartebetrieb 4,25 Umtriebe;  22 aufgezogene Ferkel; Universalfutter",17.3,8,8.19]
[null,161,"arbeitsteilige Ferkelproduktion; Wartebetrieb 4,25 Umtriebe; 22 abgesetzte Ferkel; N-/P-reduziert",15.3,7.1,7.35]
[null,162,"arbeitsteilige Ferkelproduktion; Wartebetrieb 4,25 Umtriebe; 22 abgesetzte Ferkel; stark N-/P- reduziert",14.7,6.4,7.35]
[null,163,"arbeitsteilige Ferkelproduktion; Wartebetrieb 4,25 Umtriebe; 25 abgesetzte Ferkel; Universalfutter",17.399999999999999,8,8.19]
[null,164,"arbeitsteilige Ferkelproduktion; Wartebetrieb 4,25 Umtriebe; 25 abgesetzte Ferkel;       N-/P-reduziert",15.4,7.1,7.35]
[null,165,"arbeitsteilige Ferkelproduktion; Wartebetrieb 4,25 Umtriebe; 25 abgesetzte Ferkel; stark N-/P- reduziert",14.7,6.6,7.35]
[null,166,"arbeitsteilige Ferkelproduktion; Wartebetrieb 4,25 Umtriebe; 28 abgesetzte Ferkel; Universalfutter",17.5,8.3000000000000007,8.31]
[null,167,"arbeitsteilige Ferkelproduktion; Wartebetrieb 4,25 Umtriebe; 28 abgesetzte Ferkel;       N-/P-reduziert",15.4,7.1,7.59]
[null,168,"arbeitsteilige Ferkelproduktion; Wartebetrieb 4,25 Umtriebe; 28 abgesetzte Ferkel; stark N-/P- reduziert",14.8,6.6,7.59]
[null,170,"arbeitsteilige Ferkelproduktion; Abferkelbetrieb 8,25 Umtriebe; bis 8 kg LM; 22 abgesetzte Ferkel;   Universalfutter",32.6,15.1,15.42]
[null,171,"arbeitsteilige Ferkelproduktion; Abferkelbetrieb 8,25 Umtriebe; bis 8 kg LM; 22 abgesetzte Ferkel; N-/P- reduziert",28.8,13.3,13.98]
[null,172,"arbeitsteilige Ferkelproduktion; Abferkelbetrieb 8,25 Umtriebe; bis 8 kg LM; 22 abgesetzte Ferkel; stark N-/P- reduziert",27.7,12.4,13.98]
[null,173,"arbeitsteilige Ferkelproduktion; Abferkelbetrieb 8,25 Umtriebe; bis 8 kg LM; 25 abgesetzte Ferkel;   Universalfutter",32.799999999999997,15.4,15.42]
[null,174,"arbeitsteilige Ferkelproduktion; Abferkelbetrieb 8,25 Umtriebe; bis 8 kg LM;                  25 abgesetzte Ferkel; N-/P- reduziert",29,13.5,13.98]
[null,175,"arbeitsteilige Ferkelproduktion; Abferkelbetrieb 8,25 Umtriebe; bis 8 kg LM;                  25 abgesetzte Ferkel; stark N-/P- reduziert",27.8,12.4,13.98]
[null,176,"arbeitsteilige Ferkelproduktion; Abferkelbetrieb 8,25 Umtriebe; bis 8 kg LM; 28 abgesetzte Ferkel;   Universalfutter",33.1,15.4,15.67]
[null,177,"arbeitsteilige Ferkelproduktion; Abferkelbetrieb 8,25 Umtriebe; bis 8 kg LM;                  28 abgesetzte Ferkel; N-/P- reduziert",29.1,13.5,14.22]
[null,178,"arbeitsteilige Ferkelproduktion; Abferkelbetrieb 8,25 Umtriebe; bis 8 kg LM;                  28 abgesetzte Ferkel; stark N-/P- reduziert",27.9,12.4,14.22]
[null,180,"arbeitsteilige Ferkelproduktion; kombinierter Deck- u. Wartebetrieb; 2,75 Umtriebe;  22 abgesetze Ferkel; Universlfutter",20.2,9.4,9.52]
[null,181,"arbeitsteilige Ferkelproduktion; kombinierter Deck- u. Wartebetrieb; 2,75 Umtriebe; 22 abgesetze Ferkel; N-/P- reduziert",17.8,8.3000000000000007,8.68]
[null,182,"arbeitsteilige Ferkelproduktion; kombinierter Deck- u. Wartebetrieb; 2,75 Umtriebe; 22 abgesetze Ferkel; stark N-/P- reduziert",17.100000000000001,7.6,8.68]
[null,183,"arbeitsteilige Ferkelproduktion; kombinierter Deck- u. Wartebetrieb; 2,75 Umtriebe; 25 abgesetze Ferkel; Universlfutter",20.3,9.4,9.52]
[null,184,"arbeitsteilige Ferkelproduktion; kombinierter Deck- u. Wartebetrieb; 2,75 Umtriebe;     25 abgesetze Ferkel; N-/P- reduziert",17.899999999999999,8.3000000000000007,8.68]
[null,185,"arbeitsteilige Ferkelproduktion; kombinierter Deck- u. Wartebetrieb; 2,75 Umtriebe;      25 abgesetze Ferkel; stark N-/P- reduziert",17.2,7.6,8.68]
[null,186,"arbeitsteilige Ferkelproduktion; kombinierter Deck- u. Wartebetrieb; 2,75 Umtriebe; 28 abgesetze Ferkel; Universlfutter",20.5,9.6,9.76]
[null,187,"arbeitsteilige Ferkelproduktion; kombinierter Deck- u. Wartebetrieb; 2,75 Umtriebe;     28 abgesetze Ferkel; N-/P- reduziert",18,8.5,8.8000000000000007]
[null,188,"arbeitsteilige Ferkelproduktion; kombinierter Deck- u. Wartebetrieb; 2,75 Umtriebe;     28 abgesetze Ferkel; stark N-/P- reduziert",17.3,7.6,8.8000000000000007]
[null,190,"arbeitsteilige Ferkelproduktion; kombi. Warte- u. Abferkelbetrieb; 3,0 Umtriebe; bis 8 kg LM; 22 abgesetzte Ferkel; Universalfutter",24,11.2,11.33]
[null,191,"arbeitsteilige Ferkelproduktion; kombinierter Warte- u. Abferkelbetrieb; 3,0 Umtriebe; bis 8 kg LM; 22 abgesetzte Ferkel; N-/P- reduziert",21.3,9.9,10.36]
[null,192,"arbeitsteilige Ferkelproduktion; kombinierter Warte- u. Abferkelbetrieb; 3,0 Umtriebe; bis 8 kg LM; 22 abgesetzte Ferkel; stark N-/P- reduziert",20.399999999999999,8.9,10.36]
[null,193,"arbeitsteilige Ferkelproduktion; kombinierter Warte- u. Abferkelbetrieb; 3,0 Umtriebe; bis 8 kg LM; 25 abgesetzte Ferkel;   Universalfutter",24.2,11.2,11.33]
[null,194,"arbeitsteilige Ferkelproduktion; kombinierter Warte- u. Abferkelbetrieb; 3,0 Umtriebe; bis 8 kg LM; 25 abgesetzte Ferkel; N-/P- reduziert",21.4,9.9,10.24]
[null,195,"arbeitsteilige Ferkelproduktion; kombinierter Warte- u. Abferkelbetrieb; 3,0 Umtriebe; bis 8 kg LM; 25 abgesetzte Ferkel; stark N-/P- reduziert",20.5,8.9,10.24]
[null,196,"arbeitsteilige Ferkelproduktion; kombinierter Warte- u. Abferkelbetrieb; 3,0 Umtriebe; bis 8 kg LM; 28 abgesetzte Ferkel;   Universalfutter",24.4,11.2,11.69]
[null,197,"arbeitsteilige Ferkelproduktion; kombinierter Warte- u. Abferkelbetrieb; 3,0 Umtriebe; bis 8 kg LM; 28 abgesetzte Ferkel; N-/P- reduziert",21.5,10.1,10.48]
[null,198,"arbeitsteilige Ferkelproduktion; kombinierter Warte- u. Abferkelbetrieb; 3,0 Umtriebe; bis 8 kg LM; 28 abgesetzte Ferkel; stark N-/P- reduziert",20.6,8.9,10.48]
[null,200,"Schweinemast, 700 g Tageszunahme, 28 bis 118 kg LM;   210 kg Zuwachs; 2,33 Durchgänge;  Universalfutter",11.1,4.8,5.5]
[null,201,"Schweinemast, 700 g Tageszunahme, 28 bis 118 kg LM;   210 kg Zuwachs; 2,33 Durchgänge; N-/P-reduziert",10.7,4.0999999999999996,5.3]
[null,202,"Schweinemast, 700 Tageszunahme,  28 bis 118 kg LM;   210 kg Zuwachs; 2,33 Durchgänge; stark N-/P- reduziert",9.6,3.7,5.2]
[null,232,"Schweinemast, 700 Tageszunahme,  28 bis 118 kg LM;   210 kg Zuwachs; 2,33 Durchgänge; sehr stark N-/P- reduziert","9,1",3.4174311926605503,4.7710843373493974]
[null,203,"Schweinemast, 750 g Tageszunahme, 28 bis 118 kg LM;   223 kg Zuwachs; 2,47 Durchgänge;  Universalfutter",11.4,4.8,5.7]
[null,204,"Schweinemast, 750 g Tageszunahme, 28 bis 118 kg LM;   223 kg Zuwachs; 2,47 Durchgänge; N-/P- reduziert",10.9,4.0999999999999996,5.5]
[null,205,"Schweinemast, 750 g Tageszunahme, 28 bis 118 kg LM;   223 kg Zuwachs; 2,47 Durchgänge; stark N-/P- reduziert",9.8000000000000007,3.9,5.3]
[null,233,"Schweinemast, 750 g Tageszunahme, 28 bis 118 kg LM;   223 kg Zuwachs; 2,47 Durchgänge; sehr stark N-/P- reduziert","9,3",3.5091743119266057,4.927710843373494]
[null,206,"Schweinemast, 850 g Tageszunahme, 28 bis 118 kg LM;   246 kg Zuwachs; 2,73 Durchgänge;  Universalfutter",12.2,5,5.9]
[null,207,"Schweinemast, 850 g Tageszunahme, 28 bis 118 kg LM;   246 kg Zuwachs; 2,73 Durchgänge; N-/P- reduziert",11.7,4.4000000000000004,5.8]
[null,208,"Schweinemast, 850 g Tageszunahme, 28 bis 118 kg LM;   246 kg Zuwachs; 2,73 Durchgänge; stark N-/P- reduziert",10.6,3.9,5.5]
[null,234,"Schweinemast, 850 g Tageszunahme, 28 bis 118 kg LM;   246 kg Zuwachs; 2,73 Durchgänge; sehr stark N-/P- reduziert","9,5",3.5550458715596331,5.168674698795181]
[null,209,"Schweinemast, 950 g Tageszunahme, 28 bis 118 kg LM;   267 kg Zuwachs; 2,97 Durchgänge,  Universalfutter",12.5,5,6.1]
[null,210,"Schweinemast, 950 g Tageszunahme, 28 bis 118 kg LM;   267 kg Zuwachs; 2,97 Durchgänge, N-/P- reduziert",12,4.4000000000000004,6]
[null,211,"Schweinemast, 950 g Tageszunahme; 28 bis 118 kg LM;   267 kg Zuwachs; 2,97 Durchgänge, stark N-/P- reduziert",10.8,3.9,5.8]
[null,235,"Schweinemast, 950 g Tageszunahme; 28 bis 118 kg LM;   267 kg Zuwachs; 2,97 Durchgänge, sehr stark N-/P- reduziert","9,7",3.5779816513761471,5.3734939759036147]
[null,252,"Schweinemast, 1050 g Tageszunahme; 28 bis 118 kg LM;   297 kg Zuwachs; 3,21 Durchgänge, stark N-/P- reduziert",10.7,3.8946999999999998,5.9165500000000009]
[null,253,"Schweinemast, 1050 g Tageszunahme; 28 bis 118 kg LM;   297 kg Zuwachs; 3,21 Durchgänge, sehr stark N-/P- reduziert",9.6,3.5281400000000001,5.4827500000000002]
[null,212,"Jungebermast, 850 g Tageszunahme, 28 bis 118 kg LM;   246 kg Zuwachs; Geschlechtsverhältnis wbl.:ml. 50:50; 2,73 Durchgänge;  Universalfutter",11.8,4.8,6.6]
[null,213,"Jungebermast, 850 g Tageszunahme, 28 bis 118 kg LM;   246 kg Zuwachs; Geschlechtsverhältnis wbl.:ml. 50:50; 2,73 Durchgänge; N-/P- reduziert",11.3,4.4000000000000004,6.4]
[null,218,"Jungebermast, 850 g Tageszunahme, 28 bis 118 kg LM;   246 kg Zuwachs; Geschlechtsverhältnis wbl.:ml. 50:50; 2,73 Durchgänge; stark N-/P- reduziert",9.69,3.57,4.5599999999999996]
[null,236,"Jungebermast, 850 g Tageszunahme, 28 bis 118 kg LM;   246 kg Zuwachs; Geschlechtsverhältnis wbl.:ml. 50:50; 2,73 Durchgänge; sehr stark N-/P- reduziert","8,7",3.2339449541284404,4.8674698795180724]
[null,254,"Jungebermast, 950 g Tageszunahme, 28 bis 118 kg LM;   267 kg Zuwachs; Geschlechtsverhältnis wbl.:ml. 50:50; 2,97 Durchgänge; stark N-/P- reduziert",10.3,3.7343299999999995,5.6153000000000004]
[null,255,"Jungebermast, 950 g Tageszunahme, 28 bis 118 kg LM;   267 kg Zuwachs; Geschlechtsverhältnis wbl.:ml. 50:50; 2,97 Durchgänge; sehr stark N-/P- reduziert",9.1999999999999993,3.4135899999999997,5.2056000000000004]
[null,214,"Jungebermast, 900 g Tageszunahme, 28 bis 118 kg LM; Geschlechtsverhältnis wbl.:ml. 0:100; 2,85 Durchgänge; Universalmast mit Vormast; 256,5 kg Zuwachs",11.3,4.5999999999999996,6.5]
[null,215,"Jungebermast;  900 g Tageszunahme, 28 bis 118 kg LM; Geschlechtsverhältnis wbl.:ml. 0:100; 2,85 Durchgänge;  2-Phasen-Mast mit Vormast; 256,5 kg Zuwachs",10.9,4.0999999999999996,6.4]
[null,219,"Jungebermast, 900 g Tageszunahme, 28 bis 118 kg LM; Geschlechtsverhältnis wbl.:ml. 0:100; 2,85 Durchgänge; N-/P- reduziert; 256,5 kg Zuwachs",10.9,4.1399999999999997,5.3]
[null,220,"Jungebermast, 900 g Tageszunahme, 28 bis 118 kg LM; Geschlechtsverhältnis wbl.:ml. 0:100; 2,85 Durchgänge; stark N-/P- reduziert; 256,5 kg Zuwachs",9.26,3.39,4.5]
[null,256,"Jungebermast, 900 g Tageszunahme, 28 bis 118 kg LM; Geschlechtsverhältnis wbl.:ml. 0:100; 2,85 Durchgänge; sehr stark N-/P- reduziert; 256,5 kg Zuwachs",8.3000000000000007,3.0241199999999999,4.7959000000000005]
[null,257,"Jungebermast, 1000 g Tageszunahme, 28 bis 118 kg LM; Geschlechtsverhältnis wbl.:ml. 0:100; 3,12 Durchgänge; stark N-/P- reduziert; 281 kg Zuwachs",9.9,3.57396,5.5791500000000003]
[null,258,"Jungebermast, 1000 g Tageszunahme, 28 bis 118 kg LM; Geschlechtsverhältnis wbl.:ml. 0:100; 3,12 Durchgänge; sehr stark N-/P- reduziert; 281 kg Zuwachs",8.8000000000000007,3.2073999999999998,5.1574000000000009]
[null,216,"Jungebermast, 800 g Tageszunahme, 28 bis 118 kg LM; Geschlechtsverhältnis wbl.:ml. 100:0; 2,6 Durchgänge; Universalmast mit Vormast; 234 kg Zuwachs",12.1,5,6.5]
[null,217,"Jungebermast, 800 g Tageszunahme, 28 bis 118 kg LM; Geschlechtsverhältnis wbl.:ml. 100:0; 2,6 Durchgänge;  2-Phasen- Mast mit Vormast; 234 kg Zuwachs",11.7,4.5,6.3]
[null,259,"Jungebermast, 800 g Tageszunahme, 28 bis 118 kg LM; Geschlechtsverhältnis wbl.:ml. 100:0; 234 kg Zuwachs; 2,6 Durchgänge; stark N-/P-reduziert",10,3.68851,5.4225000000000003]
[null,260,"Jungebermast, 800 g Tageszunahme, 28 bis 118 kg LM; Geschlechtsverhältnis wbl.:ml. 100:0; 234 kg Zuwachs; 2,6 Durchgänge;  sehr stark N-/P-reduziert",9,3.3677699999999997,4.9164000000000003]
[null,261,"Jungebermast, 900 g Tageszunahme, 28 bis 118 kg LM; Geschlechtsverhältnis wbl.:ml. 100:0; 258 kg Zuwachs; 2,87 Durchgänge; stark N-/P-reduziert",10.9,4.0092499999999998,5.7839999999999998]
[null,262,"Jungebermast, 900 g Tageszunahme, 28 bis 118 kg LM; Geschlechtsverhältnis wbl.:ml. 100:0; 258 kg Zuwachs; 2,87 Durchgänge; sehr stark N-/P-reduziert",9.8000000000000007,3.61978,5.350200000000001]
[null,"Geflügel"]
[null,300,"Junghennenaufzucht, 3,5 kg Zuwachs; 3-Phasen-Fütterung; Standardfutter",0.26900000000000002,0.17599999999999999,0.125]
[null,301,"Junghennenaufzucht, 3,5 kg Zuwachs; 3-Phasen-Fütterung;                       N-/P- reduziert",0.252,0.151,0.125]
[null,302,"Legehennenhaltung, 17,6 kg Eimasse je Tier; 2-Phasen-Fütterung; Standardfutter",0.76400000000000001,0.39600000000000002,0.34499999999999997]
[null,303,"Legehennenhaltung, 17,6 kg Eimasse je Tier; 2-Phasen-Fütterung;             N-/P- reduziert",0.73099999999999998,0.34599999999999997,0.34499999999999997]
[null,309,"Hähnchenmast 42 Tage , Vorabfang, Durchschnitt 2,55 kg / Zuwachs Tier 18,99 Zuwachs/ Platz stark N-/ P- reduziert , 5 Phasen",0.34,0.159,0.24399999999999999]
[null,310,"Hähnchenmast, über 39 Tage,  2,6 kg  Zuwachs/Tier  Standardfutter",0.41299999999999998,0.208481,0.227745]
[null,311,"Hähnchenmast, über 39 Tage,  2,6 kg  Zuwachs/Tier  N-/P-reduziert",0.38500000000000001,0.176478,0.227745]
[null,312,"Hähnchenmast, 34 bis 38 Tage,  2,3 kg  Zuwachs/Tier  Standardfutter",0.38800000000000001,0.1901862,0.21931]
[null,313,"Hähnchenmast, 34 bis 38 Tage,  2,3 kg  Zuwachs/Tier  N-/P-reduziert",0.35699999999999998,0.17414640000000001,0.21931]
[null,314,"Hähnchenmast, 30 bis 33 Tage,  1,85 kg  Zuwachs/Tier  Standardfutter",0.32800000000000001,0.17414640000000001,0.1928]
[null,315,"Hähnchenmast, 30 bis 33 Tage,  1,85 kg  Zuwachs/Tier  N-/P-reduziert",0.311,0.15352379999999999,0.1928]
[null,316,"Hähnchenmast, bis 29 Tage, 1,55 kg  Zuwachs/Tier  Standardfutter",0.26700000000000002,0.14206679999999999,0.16147]
[null,317,"Hähnchenmast, bis 29 Tage,  1,55 kg  Zuwachs/Tier  N-/P-reduziert",0.249,0.12144199999999999,0.16147]
[null,321,"Putenmast, Hähne; 22,1 kg Zuwachs; Mastdauer bis 21 Wochen; N-/P-reduziert",1.9910000000000001,0.94099999999999995,0.93300000000000005]
[null,322,"Putenmast, Hennen; 10,9 kg Zuwachs; Mastdauer bis 16 Wochen; N-/P-reduziert",1.3420000000000001,0.54300000000000004,0.60599999999999998]
[null,325,"Putenmast, Hähne; von 6.-21. Woche; N-/P- reduziert",2.282,1.044,1.0529999999999999]
[null,327,"Putenmast, Hennen; von 6.-16. Woche; N-/P- reduziert",1.542,0.72599999999999998,0.7]
[null,329,"Putenmast, Gemischt geschlechtliche Mast;  50% Hähne und 50% Hennen; N/P reduzierte Fütterung",1.542,0.72599999999999998,0.71199999999999997]
[null,330,"Putenaufzucht bis 5 Wochen 50% Hähne, 50% Hennen; Standardfutter",0.42199999999999999,0.28899999999999998,0.23100000000000001]
[null,340,"Entenmast, Pekingenten; 3,0 kg Zuwachs je Tier; 19,5 kg Zuwachs je Mastplatz und Jahr; 6,5 Durchgänge",0.60499999999999998,0.34399999999999997,0.312]
[null,341,"Entenmast, Flugenten; 15,4 kg Zuwachs/Platz/Jahr, 4 Durchgängen; (2,7 kg Zuwachs weiblich, 5,0 kg Zuwachs männlich); 1:1 w/m",0.57599999999999996,0.36699999999999999,0.28399999999999997]
[null,342,"Entenmast, Pekingenten (Vor- und Endmast); 3,2 kg Zuwachs je Tier; 41,2 kg Zuwachs je Mastplatz und Jahr; 13 Durchgänge; Mastdauer bis zu 26 Tage",1.2,0.7,0.626]
[null,350,"Gänsemast, Schnellmast 9 Wochen; 5,0 kg Zuwachs/Tier   (1 Durchgang)",0.23100000000000001,0.13300000000000001,0.121]
[null,351,"Gänsemast, Mittelmast 16 Wochen; 6,8 kg Zuwachs/Tier   (1 Durchgang)",0.70199999999999996,0.38700000000000001,0.308]
[null,352,"Gänsemast, Spätmast/Weidemast 30 Wochen; 7,5 kg Zuwachs/Tier (1 Durchgang)",1.0740000000000001,0.33400000000000002,1.03]
[null,"Pferde  ","Schafe, Ziegen, Wild, Kaninchen"]
[null,400,"Reitpferde, 500 - 600 kg LM; leichte Arbeit; Stallhaltung",51.1,23.4,57.5]
[null,401,"Reitpferde, 500 - 600 kg LM; leichte Arbeit; Stall-/Weidehaltung",53.6,23.4,67]
[null,402,"Reitponys, 300 kg LM; leichte Arbeit; Stallhaltung",34.9,16.5,47]
[null,403,"Reitponys, 300 kg LM; leichte Arbeit; Stall-/Weidehaltung",33.4,15.3,51]
[null,404,"Zuchtstuten, Stall-/Weidehaltung; Großpferd; 600 kg LM;   0,5 Fohlen/Jahr",63.5,28,73.7]
[null,405,"Zuchtstuten, Stall-/Weidehaltung; Pony 350 kg LM; 0,5 Fohlen/Jahr",42.3,18.399999999999999,56.3]
[null,406,"Aufzuchtpferde, Stall-/Weidehaltung; Großpferd; 6. - 36. Monat;  365 kg Zuwachs",44.5,18.899999999999999,54.3]
[null,407,"Aufzuchtpferde, Stall-/Weidehaltung; Pony; 6. - 36. Monat;   150 kg Zuwachs",31.6,13.5,42]
[null,500,"Lammfleischerzeugung, 1,5 Lämmer/Mutterschaf;  40 kg Zuwachs/Lamm; konventionell",20.100000000000001,6.2,22]
[null,501,"Lammfleischerzeugung, 1,1 Lämmer/Mutterschaf;  40 kg Zuwachs/Lamm; extensiv",17.600000000000001,5,17]
[null,502,"Ziegenmilcherzeugung, 800 kg Milch/Ziege/Jahr;  1,5 Lämmer/Ziege mit 16 kg Zuwachs/Lamm",15.2,5.7,18]
[null,505,"Lämmer, Schafe bis 1 Jahr, konventionell",5.9,1.9,6.5]
[null,504,"Mutterschafe (ohne Lamm), andere Schafe, konventionell",14.2,4.3,15.5]
[null,600,"Kaninchenhaltung, 52 aufgezogene Jungtiere/Häsin/Jahr;  Aufzucht bis 0,6 kg LM",2.6,1.5,2.1]
[null,601,"Kaninchenhaltung, 52 aufgezogene Jungtiere/Häsin/Jahr;  Aufzucht bis 3 kg LM",9.6999999999999993,5.4,8.3000000000000007]
[null,602,"Kaninchenmast, von 0,6 bis 3 kg LM; 14 kg Zuwachs/Platz",0.7,0.4,0.9]
[null,700,"Damtierfleischproduktion 45 kg Zuwachs,   (Alttier mit 0,85 Kalb)",21.6,6.2,24]

{"sheet":"Weideverluste","index":5,"n_rows":9,"n_cols":5,"rows_kept":9,"cut":false,"hidden":false,"merged":[]}
["Art","Aufbringungs-verluste (%)","Lagerungs-verluste (%)","TS-Abbau in %","Weideverluste (%)"]
["Rindermist",14.29,30,10,30]
["Schweinemist",14.29,30,5,30]
["sonstiger Mist",9.1,45,10,45]
["Geflügelmist",16.7,40,5,40]
["sonstiger Mist Huf- und Klauentiere",9.1,45,10,45]
["Geflügelkot",16.7,40,5,40]
["Rindergülle",17.7,15,5,30]
["Schweinegülle",12.5,20,10,30]

{"sheet":"Daten Weideverfahren","index":6,"n_rows":9,"n_cols":2,"rows_kept":9,"cut":false,"hidden":false,"merged":[]}
["DGL-TM Mähweide extensiv 60 % Weide %RP 12,5",67]
["DGL-TM Mähweide mittel 60 % Weide %RP 16,3",81]
["DGL-TM Mähweide intensiv 60 % Weide %RP 17,6",94]
["DGL-TM Mähweide extensiv 20 % Weide %RP 12,4",69]
["DGL-TM Mähweide mittel 20 % Weide %RP 17,2",98]
["DGL-TM Mähweide  intensiv 20 % Weide %RP 17,5",110]
["DGL-TM Weide intensiv (4-5 Mal) %RP 18,0",90]
["DGL-TM Weide mittel  %RP 15,3",78]
["DGL-TM Weide extensiv (2-3 Mal) %RP 12,5",65]